Workbook

Sheet Summary Sheet
B2: Summary of COVID-19 Financial Commitments | L2: Assistance Type
B4: Priorities | C4: Total | G4: Donor Commitments | L4: Financial Assistance
L5: Euro | M5: USD | N5: GEL | O5: Sum in Gel
C6: Euro | D6: USD | E6: GEL | F6: Sum in GEL | G6: Euro | H6: USD | I6: GEL | J6: Sum in GEL | L6: =SUMIFS('Economic Recovery'!I6:I300,'Economic Recovery'!J6:J300,"EUR",'Economic Recovery'!K6:K300,"Financial Assistance - Grant")+SUMIFS('Ministry of Env. and Agricultur'!J6:J305,'Ministry of Env. and Agricultur'!K6:K305,"EUR",'Ministry of Env. and Agricultur'!L6:L305,"Financial Assistance - Grant")+SUMIFS('Ministry of Education'!J6:J300,'Ministry of Education'!K6:K300,"EUR",'Ministry of Education'!L6:L300,"Financial Assistance - Grant")+SUMIFS('Human Rights'!J5:J300,'Human Rights'!K5:K300,"EUR",'Human Rights'!L5:L300,"Financial Assistance - Grant")+SUMIFS('Ministry of Health'!I6:I300,'Ministry of Health'!J6:J300,"EUR",'Ministry of Health'!K6:K300,"Financial Assistance - Grant")+SUMIFS('Humanitarian Aid'!K6:K300,'Humanitarian Aid'!L6:L300,"EUR",'Humanitarian Aid'!N6:N300,"Financial Assistance - Grant")+SUMIFS('Ministry of Defence'!L6:L300,'Ministry of Defence'!M6:M300,"EUR",'Ministry of Defence'!N6:N300,"Financial Assistance - Grant")+SUMIFS(MRDI!K6:K300,MRDI!L6:L300,"EUR",MRDI!M6:M300,"Financial Assistance - Grant")+SUMIFS('Ministry of Internal Affairs'!K6:K300,'Ministry of Internal Affairs'!L6:L300,"EUR",'Ministry of Internal Affairs'!M6:M300,"Financial Assistance - Grant")+SUMIFS('Ministry of Justice'!K6:K300,'Ministry of Justice'!L6:L300,"EUR",'Ministry of Justice'!M6:M300,"Financial Assistance - Grant")+SUMIFS('State Minister''s Office'!I6:I300,'State Minister''s Office'!J6:J300,"EUR",'State Minister''s Office'!K6:K300,"Financial Assistance - Grant")+SUMIFS('Large-scale Committments '!J6:J303,'Large-scale Committments '!K6:K303,"EUR",'Large-scale Committments '!L6:L303,"Financial Assistance - Grant")+SUMIFS(MOESD!K6:K300,MOESD!L6:L300,"EUR",MOESD!M6:M300,"Financial Assistance - Grant") -> 69300000 | M6: =SUMIFS('Economic Recovery'!I6:I300,'Economic Recovery'!J6:J300,"USD",'Economic Recovery'!K6:K300,"Financial Assistance - Grant")+SUMIFS('Ministry of Env. and Agricultur'!J6:J305,'Ministry of Env. and Agricultur'!K6:K305,"USD",'Ministry of Env. and Agricultur'!L6:L305,"Financial Assistance - Grant")+SUMIFS('Ministry of Education'!J6:J300,'Ministry of Education'!K6:K300,"USD",'Ministry of Education'!L6:L300,"Financial Assistance - Grant")+SUMIFS('Human Rights'!J5:J300,'Human Rights'!K5:K300,"USD",'Human Rights'!L5:L300,"Financial Assistance - Grant")+SUMIFS('Ministry of Health'!I6:I300,'Ministry of Health'!J6:J300,"USD",'Ministry of Health'!K6:K300,"Financial Assistance - Grant")+SUMIFS('Humanitarian Aid'!K6:K300,'Humanitarian Aid'!L6:L300,"USD",'Humanitarian Aid'!N6:N300,"Financial Assistance - Grant")+SUMIFS('Ministry of Defence'!L6:L300,'Ministry of Defence'!M6:M300,"USD",'Ministry of Defence'!N6:N300,"Financial Assistance - Grant")+SUMIFS(MRDI!K6:K300,MRDI!L6:L300,"USD",MRDI!M6:M300,"Financial Assistance - Grant")+SUMIFS('Ministry of Internal Affairs'!K6:K300,'Ministry of Internal Affairs'!L6:L300,"USD",'Ministry of Internal Affairs'!M6:M300,"Financial Assistance - Grant")+SUMIFS('Ministry of Justice'!K6:K300,'Ministry of Justice'!L6:L300,"USD",'Ministry of Justice'!M6:M300,"Financial Assistance - Grant")+SUMIFS('State Minister''s Office'!I6:I300,'State Minister''s Office'!J6:J300,"USD",'State Minister''s Office'!K6:K300,"Financial Assistance - Grant")+SUMIFS('Large-scale Committments '!J6:J303,'Large-scale Committments '!K6:K303,"USD",'Large-scale Committments '!L6:L303,"Financial Assistance - Grant")+SUMIFS(MOESD!K6:K300,MOESD!L6:L300,"USD",MOESD!M6:M300,"Financial Assistance - Grant") -> 1155000 | N6: =SUMIFS('Economic Recovery'!I6:I300,'Economic Recovery'!J6:J300,"GEL",'Economic Recovery'!K6:K300,"Financial Assistance - Grant")+SUMIFS('Ministry of Env. and Agricultur'!J6:J305,'Ministry of Env. and Agricultur'!K6:K305,"GEL",'Ministry of Env. and Agricultur'!L6:L305,"Financial Assistance - Grant")+SUMIFS('Ministry of Education'!J6:J300,'Ministry of Education'!K6:K300,"GEL",'Ministry of Education'!L6:L300,"Financial Assistance - Grant")+SUMIFS('Human Rights'!J5:J300,'Human Rights'!K5:K300,"GEL",'Human Rights'!L5:L300,"Financial Assistance - Grant")+SUMIFS('Ministry of Health'!I6:I300,'Ministry of Health'!J6:J300,"GEL",'Ministry of Health'!K6:K300,"Financial Assistance - Grant")+SUMIFS('Humanitarian Aid'!K6:K300,'Humanitarian Aid'!L6:L300,"GEL",'Humanitarian Aid'!N6:N300,"Financial Assistance - Grant")+SUMIFS('Ministry of Defence'!L6:L300,'Ministry of Defence'!M6:M300,"GEL",'Ministry of Defence'!N6:N300,"Financial Assistance - Grant")+SUMIFS(MRDI!K6:K300,MRDI!L6:L300,"GEL",MRDI!M6:M300,"Financial Assistance - Grant")+SUMIFS('Ministry of Internal Affairs'!K6:K300,'Ministry of Internal Affairs'!L6:L300,"GEL",'Ministry of Internal Affairs'!M6:M300,"Financial Assistance - Grant")+SUMIFS('Ministry of Justice'!K6:K300,'Ministry of Justice'!L6:L300,"GEL",'Ministry of Justice'!M6:M300,"Financial Assistance - Grant")+SUMIFS('State Minister''s Office'!I6:I300,'State Minister''s Office'!J6:J300,"GEL",'State Minister''s Office'!K6:K300,"Financial Assistance - Grant")+SUMIFS('Large-scale Committments '!J6:J303,'Large-scale Committments '!K6:K303,"GEL",'Large-scale Committments '!L6:L303,"Financial Assistance - Grant")+SUMIFS(MOESD!K6:K300,MOESD!L6:L300,"GEL",MOESD!M6:M300,"Financial Assistance - Grant") -> 0 | O6: =IFERROR(__xludf.DUMMYFUNCTION("(L6*GOOGLEFINANCE(""Currency:EURGEL"")+(M6*GOOGLEFINANCE(""Currency:USDGEL"")+N6))"),2.4266979660000002E8) -> 242669796.6 | P6: Grant
B7: Economic Recovery | C7: =SUMIF('Economic Recovery'!J6:J300,"EUR",'Economic Recovery'!I6:I300) -> 0 | D7: =SUMIF('Economic Recovery'!J6:J300,"USD",'Economic Recovery'!I6:I300) -> 0 | E7: =SUMIF('Economic Recovery'!J6:J300,"GEL",'Economic Recovery'!I6:I300) -> 0 | F7: =IFERROR(__xludf.DUMMYFUNCTION("(C7*GOOGLEFINANCE(""currency:eurgel""))+(D7*GOOGLEFINANCE(""currency:usdgel""))+E7"),0.0) -> 0 | G7: =SUMIF('Economic Recovery'!J6:J300,"EUR",'Economic Recovery'!I6:I300) -> 0 | H7: =SUMIF('Economic Recovery'!J6:J300,"USD",'Economic Recovery'!I6:I300) -> 0 | I7: =SUMIF('Economic Recovery'!J6:J300,"GEL",'Economic Recovery'!I6:I300) -> 0 | J7: =IFERROR(__xludf.DUMMYFUNCTION("(G7*GOOGLEFINANCE(""currency:eurgel""))+(H7*GOOGLEFINANCE(""currency:usdgel""))+I7"),0.0) -> 0 | L7: =SUMIFS('Economic Recovery'!I6:I300,'Economic Recovery'!J6:J300,"EUR",'Economic Recovery'!K6:K300,"Financial Assistance - Loan")+SUMIFS('Ministry of Env. and Agricultur'!J6:J305,'Ministry of Env. and Agricultur'!K6:K305,"EUR",'Ministry of Env. and Agricultur'!L6:L305,"Financial Assistance - Loan")+SUMIFS('Ministry of Education'!J6:J300,'Ministry of Education'!K6:K300,"EUR",'Ministry of Education'!L6:L300,"Financial Assistance - Loan")+SUMIFS('Human Rights'!J5:J300,'Human Rights'!K5:K300,"EUR",'Human Rights'!L5:L300,"Financial Assistance - Loan")+SUMIFS('Ministry of Health'!I6:I300,'Ministry of Health'!J6:J300,"EUR",'Ministry of Health'!K6:K300,"Financial Assistance - Loan")+SUMIFS('Humanitarian Aid'!K6:K300,'Humanitarian Aid'!L6:L300,"EUR",'Humanitarian Aid'!N6:N300,"Financial Assistance - Loan")+SUMIFS('Ministry of Defence'!L6:L300,'Ministry of Defence'!M6:M300,"EUR",'Ministry of Defence'!N6:N300,"Financial Assistance - Loan")+SUMIFS(MRDI!K6:K300,MRDI!L6:L300,"EUR",MRDI!M6:M300,"Financial Assistance - Loan")+SUMIFS('Ministry of Internal Affairs'!K6:K300,'Ministry of Internal Affairs'!L6:L300,"EUR",'Ministry of Internal Affairs'!M6:M300,"Financial Assistance - Loan")+SUMIFS('Ministry of Justice'!K6:K300,'Ministry of Justice'!L6:L300,"EUR",'Ministry of Justice'!M6:M300,"Financial Assistance - Loan")+SUMIFS('State Minister''s Office'!I6:I300,'State Minister''s Office'!J6:J300,"EUR",'State Minister''s Office'!K6:K300,"Financial Assistance - Loan")+SUMIFS('Large-scale Committments '!J6:J303,'Large-scale Committments '!K6:K303,"EUR",'Large-scale Committments '!L6:L303,"Financial Assistance - Loan")+SUMIFS(MOESD!K6:K300,MOESD!L6:L300,"EUR",MOESD!M6:M300,"Financial Assistance - Loan") -> 70000000 | M7: =SUMIFS('Economic Recovery'!I6:I300,'Economic Recovery'!J6:J300,"USD",'Economic Recovery'!K6:K300,"Financial Assistance - Loan")+SUMIFS('Ministry of Env. and Agricultur'!J6:J305,'Ministry of Env. and Agricultur'!K6:K305,"USD",'Ministry of Env. and Agricultur'!L6:L305,"Financial Assistance - Loan")+SUMIFS('Ministry of Education'!J6:J300,'Ministry of Education'!K6:K300,"USD",'Ministry of Education'!L6:L300,"Financial Assistance - Loan")+SUMIFS('Human Rights'!J5:J300,'Human Rights'!K5:K300,"USD",'Human Rights'!L5:L300,"Financial Assistance - Loan")+SUMIFS('Ministry of Health'!I6:I300,'Ministry of Health'!J6:J300,"USD",'Ministry of Health'!K6:K300,"Financial Assistance - Loan")+SUMIFS('Humanitarian Aid'!K6:K300,'Humanitarian Aid'!L6:L300,"USD",'Humanitarian Aid'!N6:N300,"Financial Assistance - Loan")+SUMIFS('Ministry of Defence'!L6:L300,'Ministry of Defence'!M6:M300,"USD",'Ministry of Defence'!N6:N300,"Financial Assistance - Loan")+SUMIFS(MRDI!K6:K300,MRDI!L6:L300,"USD",MRDI!M6:M300,"Financial Assistance - Loan")+SUMIFS('Ministry of Internal Affairs'!K6:K300,'Ministry of Internal Affairs'!L6:L300,"USD",'Ministry of Internal Affairs'!M6:M300,"Financial Assistance - Loan")+SUMIFS('Ministry of Justice'!K6:K300,'Ministry of Justice'!L6:L300,"USD",'Ministry of Justice'!M6:M300,"Financial Assistance - Loan")+SUMIFS('State Minister''s Office'!I6:I300,'State Minister''s Office'!J6:J300,"USD",'State Minister''s Office'!K6:K300,"Financial Assistance - Loan")+SUMIFS('Large-scale Committments '!J6:J303,'Large-scale Committments '!K6:K303,"USD",'Large-scale Committments '!L6:L303,"Financial Assistance - Loan")+SUMIFS(MOESD!K6:K300,MOESD!L6:L300,"USD",MOESD!M6:M300,"Financial Assistance - Loan") -> 0 | N7: =SUMIFS('Economic Recovery'!I6:I300,'Economic Recovery'!J6:J300,"GEL",'Economic Recovery'!K6:K300,"Financial Assistance - Loan")+SUMIFS('Ministry of Env. and Agricultur'!J6:J305,'Ministry of Env. and Agricultur'!K6:K305,"GEL",'Ministry of Env. and Agricultur'!L6:L305,"Financial Assistance - Loan")+SUMIFS('Ministry of Education'!J6:J300,'Ministry of Education'!K6:K300,"GEL",'Ministry of Education'!L6:L300,"Financial Assistance - Loan")+SUMIFS('Human Rights'!J5:J300,'Human Rights'!K5:K300,"GEL",'Human Rights'!L5:L300,"Financial Assistance - Loan")+SUMIFS('Ministry of Health'!I6:I300,'Ministry of Health'!J6:J300,"GEL",'Ministry of Health'!K6:K300,"Financial Assistance - Loan")+SUMIFS('Humanitarian Aid'!K6:K300,'Humanitarian Aid'!L6:L300,"GEL",'Humanitarian Aid'!N6:N300,"Financial Assistance - Loan")+SUMIFS('Ministry of Defence'!L6:L300,'Ministry of Defence'!M6:M300,"GEL",'Ministry of Defence'!N6:N300,"Financial Assistance - Loan")+SUMIFS(MRDI!K6:K300,MRDI!L6:L300,"GEL",MRDI!M6:M300,"Financial Assistance - Loan")+SUMIFS('Ministry of Internal Affairs'!K6:K300,'Ministry of Internal Affairs'!L6:L300,"GEL",'Ministry of Internal Affairs'!M6:M300,"Financial Assistance - Loan")+SUMIFS('Ministry of Justice'!K6:K300,'Ministry of Justice'!L6:L300,"GEL",'Ministry of Justice'!M6:M300,"Financial Assistance - Loan")+SUMIFS('State Minister''s Office'!I6:I300,'State Minister''s Office'!J6:J300,"GEL",'State Minister''s Office'!K6:K300,"Financial Assistance - Loan")+SUMIFS('Large-scale Committments '!J6:J303,'Large-scale Committments '!K6:K303,"GEL",'Large-scale Committments '!L6:L303,"Financial Assistance - Loan")+SUMIFS(MOESD!K6:K300,MOESD!L6:L300,"GEL",MOESD!M6:M300,"Financial Assistance - Loan") -> 0 | O7: =IFERROR(__xludf.DUMMYFUNCTION("(L7*GOOGLEFINANCE(""Currency:EURGEL"")+(M7*GOOGLEFINANCE(""Currency:USDGEL"")+N7))"),2.4141684E8) -> 241416840 | P7: Loan
B8: Ministry of Env and Agricultrure | C8: =SUMIF('Ministry of Env. and Agricultur'!H6:H305,"EUR",'Ministry of Env. and Agricultur'!G6:G305) -> 0 | D8: =SUMIF('Ministry of Env. and Agricultur'!H6:H305,"USD",'Ministry of Env. and Agricultur'!G6:G305) -> 0 | E8: =SUMIF('Ministry of Env. and Agricultur'!H6:H305,"GEL",'Ministry of Env. and Agricultur'!G6:G305) -> 1021200000 | F8: =IFERROR(__xludf.DUMMYFUNCTION("(C8*GOOGLEFINANCE(""currency:eurgel""))+(D8*GOOGLEFINANCE(""currency:usdgel""))+E8"),1.0212E9) -> 1021200000 | G8: =SUMIF('Ministry of Env. and Agricultur'!K6:K305,"EUR",'Ministry of Env. and Agricultur'!J6:J305) -> 0 | H8: =SUMIF('Ministry of Env. and Agricultur'!K6:K305,"USD",'Ministry of Env. and Agricultur'!J6:J305) -> 0 | I8: =SUMIF('Ministry of Env. and Agricultur'!K6:K305,"GEL",'Ministry of Env. and Agricultur'!J6:J305) -> 0 | J8: =IFERROR(__xludf.DUMMYFUNCTION("(G8*GOOGLEFINANCE(""currency:eurgel""))+(H8*GOOGLEFINANCE(""currency:usdgel""))+I8"),0.0) -> 0 | L8: =SUMIFS('Economic Recovery'!I6:I300,'Economic Recovery'!J6:J300,"EUR",'Economic Recovery'!K6:K300,"Financial Assistance - Equity")+SUMIFS('Ministry of Env. and Agricultur'!J6:J305,'Ministry of Env. and Agricultur'!K6:K305,"EUR",'Ministry of Env. and Agricultur'!L6:L305,"Financial Assistance - Equity")+SUMIFS('Ministry of Education'!J6:J300,'Ministry of Education'!K6:K300,"EUR",'Ministry of Education'!L6:L300,"Financial Assistance - Equity")+SUMIFS('Human Rights'!J5:J300,'Human Rights'!K5:K300,"EUR",'Human Rights'!L5:L300,"Financial Assistance - Equity")+SUMIFS('Ministry of Health'!I6:I300,'Ministry of Health'!J6:J300,"EUR",'Ministry of Health'!K6:K300,"Financial Assistance - Equity")+SUMIFS('Humanitarian Aid'!K6:K300,'Humanitarian Aid'!L6:L300,"EUR",'Humanitarian Aid'!N6:N300,"Financial Assistance - Equity")+SUMIFS('Ministry of Defence'!L6:L300,'Ministry of Defence'!M6:M300,"EUR",'Ministry of Defence'!N6:N300,"Financial Assistance - Equity")+SUMIFS(MRDI!K6:K300,MRDI!L6:L300,"EUR",MRDI!M6:M300,"Financial Assistance - Equity")+SUMIFS('Ministry of Internal Affairs'!K6:K300,'Ministry of Internal Affairs'!L6:L300,"EUR",'Ministry of Internal Affairs'!M6:M300,"Financial Assistance - Equity")+SUMIFS('Ministry of Justice'!K6:K300,'Ministry of Justice'!L6:L300,"EUR",'Ministry of Justice'!M6:M300,"Financial Assistance - Equity")+SUMIFS('State Minister''s Office'!I6:I300,'State Minister''s Office'!J6:J300,"EUR",'State Minister''s Office'!K6:K300,"Financial Assistance - Equity")+SUMIFS('Large-scale Committments '!J6:J303,'Large-scale Committments '!K6:K303,"EUR",'Large-scale Committments '!L6:L303,"Financial Assistance - Equity")+SUMIFS(MOESD!K6:K300,MOESD!L6:L300,"EUR",MOESD!M6:M300,"Financial Assistance - Equity") -> 0 | M8: =SUMIFS('Economic Recovery'!I6:I300,'Economic Recovery'!J6:J300,"USD",'Economic Recovery'!K6:K300,"Financial Assistance - Equity")+SUMIFS('Ministry of Env. and Agricultur'!J6:J305,'Ministry of Env. and Agricultur'!K6:K305,"USD",'Ministry of Env. and Agricultur'!L6:L305,"Financial Assistance - Equity")+SUMIFS('Ministry of Education'!J6:J300,'Ministry of Education'!K6:K300,"USD",'Ministry of Education'!L6:L300,"Financial Assistance - Equity")+SUMIFS('Human Rights'!J5:J300,'Human Rights'!K5:K300,"USD",'Human Rights'!L5:L300,"Financial Assistance - Equity")+SUMIFS('Ministry of Health'!I6:I300,'Ministry of Health'!J6:J300,"USD",'Ministry of Health'!K6:K300,"Financial Assistance - Equity")+SUMIFS('Humanitarian Aid'!K6:K300,'Humanitarian Aid'!L6:L300,"USD",'Humanitarian Aid'!N6:N300,"Financial Assistance - Equity")+SUMIFS('Ministry of Defence'!L6:L300,'Ministry of Defence'!M6:M300,"USD",'Ministry of Defence'!N6:N300,"Financial Assistance - Equity")+SUMIFS(MRDI!K6:K300,MRDI!L6:L300,"USD",MRDI!M6:M300,"Financial Assistance - Equity")+SUMIFS('Ministry of Internal Affairs'!K6:K300,'Ministry of Internal Affairs'!L6:L300,"USD",'Ministry of Internal Affairs'!M6:M300,"Financial Assistance - Equity")+SUMIFS('Ministry of Justice'!K6:K300,'Ministry of Justice'!L6:L300,"USD",'Ministry of Justice'!M6:M300,"Financial Assistance - Equity")+SUMIFS('State Minister''s Office'!I6:I300,'State Minister''s Office'!J6:J300,"USD",'State Minister''s Office'!K6:K300,"Financial Assistance - Equity")+SUMIFS('Large-scale Committments '!J6:J303,'Large-scale Committments '!K6:K303,"USD",'Large-scale Committments '!L6:L303,"Financial Assistance - Equity")+SUMIFS(MOESD!K6:K300,MOESD!L6:L300,"USD",MOESD!M6:M300,"Financial Assistance - Equity") -> 0 | N8: =SUMIFS('Economic Recovery'!I6:I300,'Economic Recovery'!J6:J300,"GEL",'Economic Recovery'!K6:K300,"Financial Assistance - Equity")+SUMIFS('Ministry of Env. and Agricultur'!J6:J305,'Ministry of Env. and Agricultur'!K6:K305,"GEL",'Ministry of Env. and Agricultur'!L6:L305,"Financial Assistance - Equity")+SUMIFS('Ministry of Education'!J6:J300,'Ministry of Education'!K6:K300,"GEL",'Ministry of Education'!L6:L300,"Financial Assistance - Equity")+SUMIFS('Human Rights'!J5:J300,'Human Rights'!K5:K300,"GEL",'Human Rights'!L5:L300,"Financial Assistance - Equity")+SUMIFS('Ministry of Health'!I6:I300,'Ministry of Health'!J6:J300,"GEL",'Ministry of Health'!K6:K300,"Financial Assistance - Equity")+SUMIFS('Humanitarian Aid'!K6:K300,'Humanitarian Aid'!L6:L300,"GEL",'Humanitarian Aid'!N6:N300,"Financial Assistance - Equity")+SUMIFS('Ministry of Defence'!L6:L300,'Ministry of Defence'!M6:M300,"GEL",'Ministry of Defence'!N6:N300,"Financial Assistance - Equity")+SUMIFS(MRDI!K6:K300,MRDI!L6:L300,"GEL",MRDI!M6:M300,"Financial Assistance - Equity")+SUMIFS('Ministry of Internal Affairs'!K6:K300,'Ministry of Internal Affairs'!L6:L300,"GEL",'Ministry of Internal Affairs'!M6:M300,"Financial Assistance - Equity")+SUMIFS('Ministry of Justice'!K6:K300,'Ministry of Justice'!L6:L300,"GEL",'Ministry of Justice'!M6:M300,"Financial Assistance - Equity")+SUMIFS('State Minister''s Office'!I6:I300,'State Minister''s Office'!J6:J300,"GEL",'State Minister''s Office'!K6:K300,"Financial Assistance - Equity")+SUMIFS('Large-scale Committments '!J6:J303,'Large-scale Committments '!K6:K303,"GEL",'Large-scale Committments '!L6:L303,"Financial Assistance - Equity")+SUMIFS(MOESD!K6:K300,MOESD!L6:L300,"GEL",MOESD!M6:M300,"Financial Assistance - Equity") -> 0 | O8: =IFERROR(__xludf.DUMMYFUNCTION("(L8*GOOGLEFINANCE(""Currency:EURGEL"")+(M8*GOOGLEFINANCE(""Currency:USDGEL"")+N8))"),0.0) -> 0 | P8: Equity
B9: Ministry of Education | C9: =SUMIF('Ministry of Education'!H6:H300,"EUR",'Ministry of Education'!G6:G300) -> 150000 | D9: =SUMIF('Ministry of Education'!H6:H300,"USD",'Ministry of Education'!G6:G300) -> 0 | E9: =SUMIF('Ministry of Education'!H6:H300,"GEL",'Ministry of Education'!G6:G300) -> 0 | F9: =IFERROR(__xludf.DUMMYFUNCTION("(C9*GOOGLEFINANCE(""currency:eurgel""))+(D9*GOOGLEFINANCE(""currency:usdgel""))+E9"),517321.80000000005) -> 517321.8 | G9: =SUMIF('Ministry of Education'!K6:K300,"EUR",'Ministry of Education'!J6:J300) -> 150000 | H9: =SUMIF('Ministry of Education'!K6:K300,"USD",'Ministry of Education'!J6:J300) -> 0 | I9: =SUMIF('Ministry of Education'!K6:K300,"GEL",'Ministry of Education'!J6:J300) -> 0 | J9: =IFERROR(__xludf.DUMMYFUNCTION("(G9*GOOGLEFINANCE(""currency:eurgel""))+(H9*GOOGLEFINANCE(""currency:usdgel""))+I9"),517321.80000000005) -> 517321.8 | L9: =SUMIFS('Economic Recovery'!I6:I300,'Economic Recovery'!J6:J300,"EUR",'Economic Recovery'!K6:K300,"Financial Assistance - Guarantee")+SUMIFS('Ministry of Env. and Agricultur'!J6:J305,'Ministry of Env. and Agricultur'!K6:K305,"EUR",'Ministry of Env. and Agricultur'!L6:L305,"Financial Assistance - Guarantee")+SUMIFS('Ministry of Education'!J6:J300,'Ministry of Education'!K6:K300,"EUR",'Ministry of Education'!L6:L300,"Financial Assistance - Guarantee")+SUMIFS('Human Rights'!J5:J300,'Human Rights'!K5:K300,"EUR",'Human Rights'!L5:L300,"Financial Assistance - Guarantee")+SUMIFS('Ministry of Health'!I6:I300,'Ministry of Health'!J6:J300,"EUR",'Ministry of Health'!K6:K300,"Financial Assistance - Guarantee")+SUMIFS('Humanitarian Aid'!K6:K300,'Humanitarian Aid'!L6:L300,"EUR",'Humanitarian Aid'!N6:N300,"Financial Assistance - Guarantee")+SUMIFS('Ministry of Defence'!L6:L300,'Ministry of Defence'!M6:M300,"EUR",'Ministry of Defence'!N6:N300,"Financial Assistance - Guarantee")+SUMIFS(MRDI!K6:K300,MRDI!L6:L300,"EUR",MRDI!M6:M300,"Financial Assistance - Guarantee")+SUMIFS('Ministry of Internal Affairs'!K6:K300,'Ministry of Internal Affairs'!L6:L300,"EUR",'Ministry of Internal Affairs'!M6:M300,"Financial Assistance - Guarantee")+SUMIFS('Ministry of Justice'!K6:K300,'Ministry of Justice'!L6:L300,"EUR",'Ministry of Justice'!M6:M300,"Financial Assistance - Guarantee")+SUMIFS('State Minister''s Office'!I6:I300,'State Minister''s Office'!J6:J300,"EUR",'State Minister''s Office'!K6:K300,"Financial Assistance - Guarantee")+SUMIFS('Large-scale Committments '!J6:J303,'Large-scale Committments '!K6:K303,"EUR",'Large-scale Committments '!L6:L303,"Financial Assistance - Guarantee")+SUMIFS(MOESD!K6:K300,MOESD!L6:L300,"EUR",MOESD!M6:M300,"Financial Assistance - Guarantee") -> 20000000 | M9: =SUMIFS('Economic Recovery'!I6:I300,'Economic Recovery'!J6:J300,"USD",'Economic Recovery'!K6:K300,"Financial Assistance - Guarantee")+SUMIFS('Ministry of Env. and Agricultur'!J6:J305,'Ministry of Env. and Agricultur'!K6:K305,"USD",'Ministry of Env. and Agricultur'!L6:L305,"Financial Assistance - Guarantee")+SUMIFS('Ministry of Education'!J6:J300,'Ministry of Education'!K6:K300,"USD",'Ministry of Education'!L6:L300,"Financial Assistance - Guarantee")+SUMIFS('Human Rights'!J5:J300,'Human Rights'!K5:K300,"USD",'Human Rights'!L5:L300,"Financial Assistance - Guarantee")+SUMIFS('Ministry of Health'!I6:I300,'Ministry of Health'!J6:J300,"USD",'Ministry of Health'!K6:K300,"Financial Assistance - Guarantee")+SUMIFS('Humanitarian Aid'!K6:K300,'Humanitarian Aid'!L6:L300,"USD",'Humanitarian Aid'!N6:N300,"Financial Assistance - Guarantee")+SUMIFS('Ministry of Defence'!L6:L300,'Ministry of Defence'!M6:M300,"USD",'Ministry of Defence'!N6:N300,"Financial Assistance - Guarantee")+SUMIFS(MRDI!K6:K300,MRDI!L6:L300,"USD",MRDI!M6:M300,"Financial Assistance - Guarantee")+SUMIFS('Ministry of Internal Affairs'!K6:K300,'Ministry of Internal Affairs'!L6:L300,"USD",'Ministry of Internal Affairs'!M6:M300,"Financial Assistance - Guarantee")+SUMIFS('Ministry of Justice'!K6:K300,'Ministry of Justice'!L6:L300,"USD",'Ministry of Justice'!M6:M300,"Financial Assistance - Guarantee")+SUMIFS('State Minister''s Office'!I6:I300,'State Minister''s Office'!J6:J300,"USD",'State Minister''s Office'!K6:K300,"Financial Assistance - Guarantee")+SUMIFS('Large-scale Committments '!J6:J303,'Large-scale Committments '!K6:K303,"USD",'Large-scale Committments '!L6:L303,"Financial Assistance - Guarantee")+SUMIFS(MOESD!K6:K300,MOESD!L6:L300,"USD",MOESD!M6:M300,"Financial Assistance - Guarantee") -> 0 | N9: =SUMIFS('Economic Recovery'!I6:I300,'Economic Recovery'!J6:J300,"GEL",'Economic Recovery'!K6:K300,"Financial Assistance - Guarantee")+SUMIFS('Ministry of Env. and Agricultur'!J6:J305,'Ministry of Env. and Agricultur'!K6:K305,"GEL",'Ministry of Env. and Agricultur'!L6:L305,"Financial Assistance - Guarantee")+SUMIFS('Ministry of Education'!J6:J300,'Ministry of Education'!K6:K300,"GEL",'Ministry of Education'!L6:L300,"Financial Assistance - Guarantee")+SUMIFS('Human Rights'!J5:J300,'Human Rights'!K5:K300,"GEL",'Human Rights'!L5:L300,"Financial Assistance - Guarantee")+SUMIFS('Ministry of Health'!I6:I300,'Ministry of Health'!J6:J300,"GEL",'Ministry of Health'!K6:K300,"Financial Assistance - Guarantee")+SUMIFS('Humanitarian Aid'!K6:K300,'Humanitarian Aid'!L6:L300,"GEL",'Humanitarian Aid'!N6:N300,"Financial Assistance - Guarantee")+SUMIFS('Ministry of Defence'!L6:L300,'Ministry of Defence'!M6:M300,"GEL",'Ministry of Defence'!N6:N300,"Financial Assistance - Guarantee")+SUMIFS(MRDI!K6:K300,MRDI!L6:L300,"GEL",MRDI!M6:M300,"Financial Assistance - Guarantee")+SUMIFS('Ministry of Internal Affairs'!K6:K300,'Ministry of Internal Affairs'!L6:L300,"GEL",'Ministry of Internal Affairs'!M6:M300,"Financial Assistance - Guarantee")+SUMIFS('Ministry of Justice'!K6:K300,'Ministry of Justice'!L6:L300,"GEL",'Ministry of Justice'!M6:M300,"Financial Assistance - Guarantee")+SUMIFS('State Minister''s Office'!I6:I300,'State Minister''s Office'!J6:J300,"GEL",'State Minister''s Office'!K6:K300,"Financial Assistance - Guarantee")+SUMIFS('Large-scale Committments '!J6:J303,'Large-scale Committments '!K6:K303,"GEL",'Large-scale Committments '!L6:L303,"Financial Assistance - Guarantee")+SUMIFS(MOESD!K6:K300,MOESD!L6:L300,"GEL",MOESD!M6:M300,"Financial Assistance - Guarantee") -> 0 | O9: =IFERROR(__xludf.DUMMYFUNCTION("(L9*GOOGLEFINANCE(""Currency:EURGEL"")+(M9*GOOGLEFINANCE(""Currency:USDGEL"")+N9))"),6.897624E7) -> 68976240 | P9: Guarantee
B10: Human Rights | C10: =SUMIF('Human Rights'!H5:H300,"EUR",'Human Rights'!G5:G300) -> 417 | D10: =SUMIF('Human Rights'!H5:H300,"USD",'Human Rights'!G5:G300) -> 189100 | E10: =SUMIF('Human Rights'!H5:H300,"GEL",'Human Rights'!G5:G300) -> 0 | F10: =IFERROR(__xludf.DUMMYFUNCTION("(C10*GOOGLEFINANCE(""currency:eurgel""))+(D10*GOOGLEFINANCE(""currency:usdgel""))+E10"),601830.654604) -> 601830.6546 | G10: =SUMIF('Human Rights'!K5:K300,"EUR",'Human Rights'!J5:J300) -> 417 | H10: =SUMIF('Human Rights'!K5:K300,"USD",'Human Rights'!J5:J300) -> 183400 | I10: =SUMIF('Human Rights'!K5:K300,"GEL",'Human Rights'!J5:J300) -> 0 | J10: =IFERROR(__xludf.DUMMYFUNCTION("(G10*GOOGLEFINANCE(""currency:eurgel""))+(H10*GOOGLEFINANCE(""currency:usdgel""))+I10"),583733.154604) -> 583733.1546 | L10: =SUMIFS('Economic Recovery'!I6:I300,'Economic Recovery'!J6:J300,"EUR",'Economic Recovery'!K6:K300,"Financial Assistance - not specified")+SUMIFS('Ministry of Env. and Agricultur'!J6:J305,'Ministry of Env. and Agricultur'!K6:K305,"EUR",'Ministry of Env. and Agricultur'!L6:L305,"Financial Assistance - not specified")+SUMIFS('Ministry of Education'!J6:J300,'Ministry of Education'!K6:K300,"EUR",'Ministry of Education'!L6:L300,"Financial Assistance - not specified")+SUMIFS('Human Rights'!J5:J300,'Human Rights'!K5:K300,"EUR",'Human Rights'!L5:L300,"Financial Assistance - not specified")+SUMIFS('Ministry of Health'!I6:I300,'Ministry of Health'!J6:J300,"EUR",'Ministry of Health'!K6:K300,"Financial Assistance - not specified")+SUMIFS('Humanitarian Aid'!K6:K300,'Humanitarian Aid'!L6:L300,"EUR",'Humanitarian Aid'!N6:N300,"Financial Assistance - not specified")+SUMIFS('Ministry of Defence'!L6:L300,'Ministry of Defence'!M6:M300,"EUR",'Ministry of Defence'!N6:N300,"Financial Assistance - not specified")+SUMIFS(MRDI!K6:K300,MRDI!L6:L300,"EUR",MRDI!M6:M300,"Financial Assistance - not specified")+SUMIFS('Ministry of Internal Affairs'!K6:K300,'Ministry of Internal Affairs'!L6:L300,"EUR",'Ministry of Internal Affairs'!M6:M300,"Financial Assistance - not specified")+SUMIFS('Ministry of Justice'!K6:K300,'Ministry of Justice'!L6:L300,"EUR",'Ministry of Justice'!M6:M300,"Financial Assistance - not specified")+SUMIFS('State Minister''s Office'!I6:I300,'State Minister''s Office'!J6:J300,"EUR",'State Minister''s Office'!K6:K300,"Financial Assistance - not specified")+SUMIFS('Large-scale Committments '!J6:J303,'Large-scale Committments '!K6:K303,"EUR",'Large-scale Committments '!L6:L303,"Financial Assistance - not specified")+SUMIFS(MOESD!K6:K300,MOESD!L6:L300,"EUR",MOESD!M6:M300,"Financial Assistance - not specified") -> 0 | M10: =SUMIFS('Economic Recovery'!I6:I300,'Economic Recovery'!J6:J300,"USD",'Economic Recovery'!K6:K300,"Financial Assistance - not specified")+SUMIFS('Ministry of Env. and Agricultur'!J6:J305,'Ministry of Env. and Agricultur'!K6:K305,"USD",'Ministry of Env. and Agricultur'!L6:L305,"Financial Assistance - not specified")+SUMIFS('Ministry of Education'!J6:J300,'Ministry of Education'!K6:K300,"USD",'Ministry of Education'!L6:L300,"Financial Assistance - not specified")+SUMIFS('Human Rights'!J5:J300,'Human Rights'!K5:K300,"USD",'Human Rights'!L5:L300,"Financial Assistance - not specified")+SUMIFS('Ministry of Health'!I6:I300,'Ministry of Health'!J6:J300,"USD",'Ministry of Health'!K6:K300,"Financial Assistance - not specified")+SUMIFS('Humanitarian Aid'!K6:K300,'Humanitarian Aid'!L6:L300,"USD",'Humanitarian Aid'!N6:N300,"Financial Assistance - not specified")+SUMIFS('Ministry of Defence'!L6:L300,'Ministry of Defence'!M6:M300,"USD",'Ministry of Defence'!N6:N300,"Financial Assistance - not specified")+SUMIFS(MRDI!K6:K300,MRDI!L6:L300,"USD",MRDI!M6:M300,"Financial Assistance - not specified")+SUMIFS('Ministry of Internal Affairs'!K6:K300,'Ministry of Internal Affairs'!L6:L300,"USD",'Ministry of Internal Affairs'!M6:M300,"Financial Assistance - not specified")+SUMIFS('Ministry of Justice'!K6:K300,'Ministry of Justice'!L6:L300,"USD",'Ministry of Justice'!M6:M300,"Financial Assistance - not specified")+SUMIFS('State Minister''s Office'!I6:I300,'State Minister''s Office'!J6:J300,"USD",'State Minister''s Office'!K6:K300,"Financial Assistance - not specified")+SUMIFS('Large-scale Committments '!J6:J303,'Large-scale Committments '!K6:K303,"USD",'Large-scale Committments '!L6:L303,"Financial Assistance - not specified")+SUMIFS(MOESD!K6:K300,MOESD!L6:L300,"USD",MOESD!M6:M300,"Financial Assistance - not specified") -> 0 | N10: =SUMIFS('Economic Recovery'!I6:I300,'Economic Recovery'!J6:J300,"GEL",'Economic Recovery'!K6:K300,"Financial Assistance - not specified")+SUMIFS('Ministry of Env. and Agricultur'!J6:J305,'Ministry of Env. and Agricultur'!K6:K305,"GEL",'Ministry of Env. and Agricultur'!L6:L305,"Financial Assistance - not specified")+SUMIFS('Ministry of Education'!J6:J300,'Ministry of Education'!K6:K300,"GEL",'Ministry of Education'!L6:L300,"Financial Assistance - not specified")+SUMIFS('Human Rights'!J5:J300,'Human Rights'!K5:K300,"GEL",'Human Rights'!L5:L300,"Financial Assistance - not specified")+SUMIFS('Ministry of Health'!I6:I300,'Ministry of Health'!J6:J300,"GEL",'Ministry of Health'!K6:K300,"Financial Assistance - not specified")+SUMIFS('Humanitarian Aid'!K6:K300,'Humanitarian Aid'!L6:L300,"GEL",'Humanitarian Aid'!N6:N300,"Financial Assistance - not specified")+SUMIFS('Ministry of Defence'!L6:L300,'Ministry of Defence'!M6:M300,"GEL",'Ministry of Defence'!N6:N300,"Financial Assistance - not specified")+SUMIFS(MRDI!K6:K300,MRDI!L6:L300,"GEL",MRDI!M6:M300,"Financial Assistance - not specified")+SUMIFS('Ministry of Internal Affairs'!K6:K300,'Ministry of Internal Affairs'!L6:L300,"GEL",'Ministry of Internal Affairs'!M6:M300,"Financial Assistance - not specified")+SUMIFS('Ministry of Justice'!K6:K300,'Ministry of Justice'!L6:L300,"GEL",'Ministry of Justice'!M6:M300,"Financial Assistance - not specified")+SUMIFS('State Minister''s Office'!I6:I300,'State Minister''s Office'!J6:J300,"GEL",'State Minister''s Office'!K6:K300,"Financial Assistance - not specified")+SUMIFS('Large-scale Committments '!J6:J303,'Large-scale Committments '!K6:K303,"GEL",'Large-scale Committments '!L6:L303,"Financial Assistance - not specified")+SUMIFS(MOESD!K6:K300,MOESD!L6:L300,"GEL",MOESD!M6:M300,"Financial Assistance - not specified") -> 0 | O10: =IFERROR(__xludf.DUMMYFUNCTION("(L10*GOOGLEFINANCE(""Currency:EURGEL"")+(M10*GOOGLEFINANCE(""Currency:USDGEL"")+N10))"),0.0) -> 0 | P10: Not Specified
B11: Ministry of Health | C11: =SUMIF('Ministry of Health'!G6:G303,"EUR",'Ministry of Health'!F6:F303) -> 0 | D11: =SUMIF('Ministry of Health'!G6:G303,"USD",'Ministry of Health'!F6:F303) -> 0 | E11: =SUMIF('Ministry of Health'!G6:G303,"GEL",'Ministry of Health'!F6:F303) -> 10000500 | F11: =IFERROR(__xludf.DUMMYFUNCTION("(C11*GOOGLEFINANCE(""currency:eurgel""))+(D11*GOOGLEFINANCE(""currency:usdgel""))+E11"),1.00005E7) -> 10000500 | G11: =SUMIF('Ministry of Health'!J6:J300,"EUR",'Ministry of Health'!I6:I300) -> 55000 | H11: =SUMIF('Ministry of Health'!J6:J300,"USD",'Ministry of Health'!I6:I300) -> 14348 | I11: =SUMIF('Ministry of Health'!J6:J300,"GEL",'Ministry of Health'!I6:I300) -> 0 | J11: =IFERROR(__xludf.DUMMYFUNCTION("(G11*GOOGLEFINANCE(""currency:eurgel""))+(H11*GOOGLEFINANCE(""currency:usdgel""))+I11"),235239.56) -> 235239.56 | L11: TA/Expert Consultancy
B12: Humanitarian Aid | C12: =SUMIF('Humanitarian Aid'!H6:H300,"EUR",'Humanitarian Aid'!G6:G300) -> 0 | D12: =SUMIF('Humanitarian Aid'!H6:H300,"USD",'Humanitarian Aid'!G6:G300) -> 8160 | E12: =SUMIF('Humanitarian Aid'!H6:H300,"GEL",'Humanitarian Aid'!G6:G300) -> 0 | F12: =IFERROR(__xludf.DUMMYFUNCTION("(C12*GOOGLEFINANCE(""currency:eurgel""))+(D12*GOOGLEFINANCE(""currency:usdgel""))+E12"),25908.0) -> 25908 | G12: =SUMIF('Humanitarian Aid'!L6:L300,"EUR",'Humanitarian Aid'!K6:K300) -> 0 | H12: =SUMIF('Humanitarian Aid'!L6:L300,"USD",'Humanitarian Aid'!K6:K300) -> 0 | I12: =SUMIF('Humanitarian Aid'!L6:L300,"GEL",'Humanitarian Aid'!K6:K300) -> 0 | J12: =IFERROR(__xludf.DUMMYFUNCTION("(G12*GOOGLEFINANCE(""currency:eurgel""))+(H12*GOOGLEFINANCE(""currency:usdgel""))+I12"),0.0) -> 0 | L12: =SUMIFS('Economic Recovery'!I6:I300,'Economic Recovery'!J6:J300,"EUR",'Economic Recovery'!K6:K300,"TA/Expert Consultancy")+SUMIFS('Ministry of Env. and Agricultur'!J6:J305,'Ministry of Env. and Agricultur'!K6:K305,"EUR",'Ministry of Env. and Agricultur'!L6:L305,"TA/Expert Consultancy")+SUMIFS('Ministry of Education'!J6:J300,'Ministry of Education'!K6:K300,"EUR",'Ministry of Education'!L6:L300,"TA/Expert Consultancy")+SUMIFS('Human Rights'!J5:J300,'Human Rights'!K5:K300,"EUR",'Human Rights'!L5:L300,"TA/Expert Consultancy")+SUMIFS('Ministry of Health'!I6:I300,'Ministry of Health'!J6:J300,"EUR",'Ministry of Health'!K6:K300,"TA/Expert Consultancy")+SUMIFS('Humanitarian Aid'!K6:K300,'Humanitarian Aid'!L6:L300,"EUR",'Humanitarian Aid'!N6:N300,"TA/Expert Consultancy")+SUMIFS('Ministry of Defence'!L6:L300,'Ministry of Defence'!M6:M300,"EUR",'Ministry of Defence'!N6:N300,"TA/Expert Consultancy")+SUMIFS(MRDI!K6:K300,MRDI!L6:L300,"EUR",MRDI!M6:M300,"TA/Expert Consultancy")+SUMIFS('Ministry of Internal Affairs'!K6:K300,'Ministry of Internal Affairs'!L6:L300,"EUR",'Ministry of Internal Affairs'!M6:M300,"TA/Expert Consultancy")+SUMIFS('Ministry of Justice'!K6:K300,'Ministry of Justice'!L6:L300,"EUR",'Ministry of Justice'!M6:M300,"TA/Expert Consultancy")+SUMIFS('State Minister''s Office'!I6:I300,'State Minister''s Office'!J6:J300,"EUR",'State Minister''s Office'!K6:K300,"TA/Expert Consultancy")+SUMIFS('Large-scale Committments '!J6:J303,'Large-scale Committments '!K6:K303,"EUR",'Large-scale Committments '!L6:L303,"TA/Expert Consultancy")+SUMIFS(MOESD!K6:K300,MOESD!L6:L300,"EUR",MOESD!M6:M300,"TA/Expert Consultancy") -> 150417 | M12: =SUMIFS('Economic Recovery'!I6:I300,'Economic Recovery'!J6:J300,"USD",'Economic Recovery'!K6:K300,"TA/Expert Consultancy")+SUMIFS('Ministry of Env. and Agricultur'!J6:J305,'Ministry of Env. and Agricultur'!K6:K305,"USD",'Ministry of Env. and Agricultur'!L6:L305,"TA/Expert Consultancy")+SUMIFS('Ministry of Education'!J6:J300,'Ministry of Education'!K6:K300,"USD",'Ministry of Education'!L6:L300,"TA/Expert Consultancy")+SUMIFS('Human Rights'!J5:J300,'Human Rights'!K5:K300,"USD",'Human Rights'!L5:L300,"TA/Expert Consultancy")+SUMIFS('Ministry of Health'!I6:I300,'Ministry of Health'!J6:J300,"USD",'Ministry of Health'!K6:K300,"TA/Expert Consultancy")+SUMIFS('Humanitarian Aid'!K6:K300,'Humanitarian Aid'!L6:L300,"USD",'Humanitarian Aid'!N6:N300,"TA/Expert Consultancy")+SUMIFS('Ministry of Defence'!L6:L300,'Ministry of Defence'!M6:M300,"USD",'Ministry of Defence'!N6:N300,"TA/Expert Consultancy")+SUMIFS(MRDI!K6:K300,MRDI!L6:L300,"USD",MRDI!M6:M300,"TA/Expert Consultancy")+SUMIFS('Ministry of Internal Affairs'!K6:K300,'Ministry of Internal Affairs'!L6:L300,"USD",'Ministry of Internal Affairs'!M6:M300,"TA/Expert Consultancy")+SUMIFS('Ministry of Justice'!K6:K300,'Ministry of Justice'!L6:L300,"USD",'Ministry of Justice'!M6:M300,"TA/Expert Consultancy")+SUMIFS('State Minister''s Office'!I6:I300,'State Minister''s Office'!J6:J300,"USD",'State Minister''s Office'!K6:K300,"TA/Expert Consultancy")+SUMIFS('Large-scale Committments '!J6:J303,'Large-scale Committments '!K6:K303,"USD",'Large-scale Committments '!L6:L303,"TA/Expert Consultancy")+SUMIFS(MOESD!K6:K300,MOESD!L6:L300,"USD",MOESD!M6:M300,"TA/Expert Consultancy") -> 123780 | N12: =SUMIFS('Economic Recovery'!I6:I300,'Economic Recovery'!J6:J300,"GEL",'Economic Recovery'!K6:K300,"TA/Expert Consultancy")+SUMIFS('Ministry of Env. and Agricultur'!J6:J305,'Ministry of Env. and Agricultur'!K6:K305,"GEL",'Ministry of Env. and Agricultur'!L6:L305,"TA/Expert Consultancy")+SUMIFS('Ministry of Education'!J6:J300,'Ministry of Education'!K6:K300,"GEL",'Ministry of Education'!L6:L300,"TA/Expert Consultancy")+SUMIFS('Human Rights'!J5:J300,'Human Rights'!K5:K300,"GEL",'Human Rights'!L5:L300,"TA/Expert Consultancy")+SUMIFS('Ministry of Health'!I6:I300,'Ministry of Health'!J6:J300,"GEL",'Ministry of Health'!K6:K300,"TA/Expert Consultancy")+SUMIFS('Humanitarian Aid'!K6:K300,'Humanitarian Aid'!L6:L300,"GEL",'Humanitarian Aid'!N6:N300,"TA/Expert Consultancy")+SUMIFS('Ministry of Defence'!L6:L300,'Ministry of Defence'!M6:M300,"GEL",'Ministry of Defence'!N6:N300,"TA/Expert Consultancy")+SUMIFS(MRDI!K6:K300,MRDI!L6:L300,"GEL",MRDI!M6:M300,"TA/Expert Consultancy")+SUMIFS('Ministry of Internal Affairs'!K6:K300,'Ministry of Internal Affairs'!L6:L300,"GEL",'Ministry of Internal Affairs'!M6:M300,"TA/Expert Consultancy")+SUMIFS('Ministry of Justice'!K6:K300,'Ministry of Justice'!L6:L300,"GEL",'Ministry of Justice'!M6:M300,"TA/Expert Consultancy")+SUMIFS('State Minister''s Office'!I6:I300,'State Minister''s Office'!J6:J300,"GEL",'State Minister''s Office'!K6:K300,"TA/Expert Consultancy")+SUMIFS('Large-scale Committments '!J6:J303,'Large-scale Committments '!K6:K303,"GEL",'Large-scale Committments '!L6:L303,"TA/Expert Consultancy")+SUMIFS(MOESD!K6:K300,MOESD!L6:L300,"GEL",MOESD!M6:M300,"TA/Expert Consultancy") -> 0 | O12: =IFERROR(__xludf.DUMMYFUNCTION("(L12*GOOGLEFINANCE(""Currency:EURGEL"")+(M12*GOOGLEFINANCE(""Currency:USDGEL"")+N12))"),911761.4546040001) -> 911761.4546
B13: Ministry of Defence | C13: =SUMIF('Ministry of Defence'!I6:I300,"EUR",'Ministry of Defence'!H6:H300) -> 0 | D13: =SUMIF('Ministry of Defence'!I6:I300,"USD",'Ministry of Defence'!H6:H300) -> 0 | E13: =SUMIF('Ministry of Defence'!I6:I300,"GEL",'Ministry of Defence'!H6:H300) -> 0 | F13: =IFERROR(__xludf.DUMMYFUNCTION("(C13*GOOGLEFINANCE(""currency:eurgel""))+(D13*GOOGLEFINANCE(""currency:usdgel""))+E13"),0.0) -> 0 | G13: =SUMIF('Ministry of Defence'!M6:M300,"EUR",'Ministry of Defence'!L6:L300) -> 0 | H13: =SUMIF('Ministry of Defence'!M6:M300,"USD",'Ministry of Defence'!L6:L300) -> 0 | I13: =SUMIF('Ministry of Defence'!M6:M300,"GEL",'Ministry of Defence'!L6:L300) -> 0 | J13: =IFERROR(__xludf.DUMMYFUNCTION("(G13*GOOGLEFINANCE(""currency:eurgel""))+(H13*GOOGLEFINANCE(""currency:usdgel""))+I13"),0.0) -> 0 | L13: Material Assistance
B14: MRDI | C14: =SUMIF(MRDI!H6:H300,"EUR",MRDI!G6:G300) -> 0 | D14: =SUMIF(MRDI!H6:H300,"USD",MRDI!G6:G300) -> 0 | E14: =SUMIF(MRDI!H6:H300,"GEL",MRDI!G6:G300) -> 0 | F14: =IFERROR(__xludf.DUMMYFUNCTION("(C14*GOOGLEFINANCE(""currency:eurgel""))+(D14*GOOGLEFINANCE(""currency:usdgel""))+E14"),0.0) -> 0 | G14: =SUMIF(MRDI!L6:L300,"EUR",MRDI!K6:K300) -> 0 | H14: =SUMIF(MRDI!L6:L300,"USD",MRDI!K6:K300) -> 0 | I14: =SUMIF(MRDI!L6:L300,"GEL",MRDI!K6:K300) -> 0 | J14: =IFERROR(__xludf.DUMMYFUNCTION("(G14*GOOGLEFINANCE(""currency:eurgel""))+(H14*GOOGLEFINANCE(""currency:usdgel""))+I14"),0.0) -> 0 | L14: =SUMIFS('Economic Recovery'!I6:I300,'Economic Recovery'!J6:J300,"EUR",'Economic Recovery'!K6:K300,"Material Assistance")+SUMIFS('Ministry of Env. and Agricultur'!J6:J305,'Ministry of Env. and Agricultur'!K6:K305,"EUR",'Ministry of Env. and Agricultur'!L6:L305,"Material Assistance")+SUMIFS('Ministry of Education'!J6:J300,'Ministry of Education'!K6:K300,"EUR",'Ministry of Education'!L6:L300,"Material Assistance")+SUMIFS('Human Rights'!J5:J300,'Human Rights'!K5:K300,"EUR",'Human Rights'!L5:L300,"Material Assistance")+SUMIFS('Ministry of Health'!I6:I300,'Ministry of Health'!J6:J300,"EUR",'Ministry of Health'!K6:K300,"Material Assistance")+SUMIFS('Humanitarian Aid'!K6:K300,'Humanitarian Aid'!L6:L300,"EUR",'Humanitarian Aid'!N6:N300,"Material Assistance")+SUMIFS('Ministry of Defence'!L6:L300,'Ministry of Defence'!M6:M300,"EUR",'Ministry of Defence'!N6:N300,"Material Assistance")+SUMIFS(MRDI!K6:K300,MRDI!L6:L300,"EUR",MRDI!M6:M300,"Material Assistance")+SUMIFS('Ministry of Internal Affairs'!K6:K300,'Ministry of Internal Affairs'!L6:L300,"EUR",'Ministry of Internal Affairs'!M6:M300,"Material Assistance")+SUMIFS('Ministry of Justice'!K6:K300,'Ministry of Justice'!L6:L300,"EUR",'Ministry of Justice'!M6:M300,"Material Assistance")+SUMIFS('State Minister''s Office'!I6:I300,'State Minister''s Office'!J6:J300,"EUR",'State Minister''s Office'!K6:K300,"Material Assistance")+SUMIFS('Large-scale Committments '!J6:J303,'Large-scale Committments '!K6:K303,"EUR",'Large-scale Committments '!L6:L303,"Material Assistance")+SUMIFS(MOESD!K6:K300,MOESD!L6:L300,"EUR",MOESD!M6:M300,"Material Assistance") -> 55000 | M14: =SUMIFS('Economic Recovery'!I6:I300,'Economic Recovery'!J6:J300,"USD",'Economic Recovery'!K6:K300,"Material Assistance")+SUMIFS('Ministry of Env. and Agricultur'!J6:J305,'Ministry of Env. and Agricultur'!K6:K305,"USD",'Ministry of Env. and Agricultur'!L6:L305,"Material Assistance")+SUMIFS('Ministry of Education'!J6:J300,'Ministry of Education'!K6:K300,"USD",'Ministry of Education'!L6:L300,"Material Assistance")+SUMIFS('Human Rights'!J5:J300,'Human Rights'!K5:K300,"USD",'Human Rights'!L5:L300,"Material Assistance")+SUMIFS('Ministry of Health'!I6:I300,'Ministry of Health'!J6:J300,"USD",'Ministry of Health'!K6:K300,"Material Assistance")+SUMIFS('Humanitarian Aid'!K6:K300,'Humanitarian Aid'!L6:L300,"USD",'Humanitarian Aid'!N6:N300,"Material Assistance")+SUMIFS('Ministry of Defence'!L6:L300,'Ministry of Defence'!M6:M300,"USD",'Ministry of Defence'!N6:N300,"Material Assistance")+SUMIFS(MRDI!K6:K300,MRDI!L6:L300,"USD",MRDI!M6:M300,"Material Assistance")+SUMIFS('Ministry of Internal Affairs'!K6:K300,'Ministry of Internal Affairs'!L6:L300,"USD",'Ministry of Internal Affairs'!M6:M300,"Material Assistance")+SUMIFS('Ministry of Justice'!K6:K300,'Ministry of Justice'!L6:L300,"USD",'Ministry of Justice'!M6:M300,"Material Assistance")+SUMIFS('State Minister''s Office'!I6:I300,'State Minister''s Office'!J6:J300,"USD",'State Minister''s Office'!K6:K300,"Material Assistance")+SUMIFS('Large-scale Committments '!J6:J303,'Large-scale Committments '!K6:K303,"USD",'Large-scale Committments '!L6:L303,"Material Assistance")+SUMIFS(MOESD!K6:K300,MOESD!L6:L300,"USD",MOESD!M6:M300,"Material Assistance") -> 1268 | N14: =SUMIFS('Economic Recovery'!I6:I300,'Economic Recovery'!J6:J300,"GEL",'Economic Recovery'!K6:K300,"Material Assistance")+SUMIFS('Ministry of Env. and Agricultur'!J6:J305,'Ministry of Env. and Agricultur'!K6:K305,"GEL",'Ministry of Env. and Agricultur'!L6:L305,"Material Assistance")+SUMIFS('Ministry of Education'!J6:J300,'Ministry of Education'!K6:K300,"GEL",'Ministry of Education'!L6:L300,"Material Assistance")+SUMIFS('Human Rights'!J5:J300,'Human Rights'!K5:K300,"GEL",'Human Rights'!L5:L300,"Material Assistance")+SUMIFS('Ministry of Health'!I6:I300,'Ministry of Health'!J6:J300,"GEL",'Ministry of Health'!K6:K300,"Material Assistance")+SUMIFS('Humanitarian Aid'!K6:K300,'Humanitarian Aid'!L6:L300,"GEL",'Humanitarian Aid'!N6:N300,"Material Assistance")+SUMIFS('Ministry of Defence'!L6:L300,'Ministry of Defence'!M6:M300,"GEL",'Ministry of Defence'!N6:N300,"Material Assistance")+SUMIFS(MRDI!K6:K300,MRDI!L6:L300,"GEL",MRDI!M6:M300,"Material Assistance")+SUMIFS('Ministry of Internal Affairs'!K6:K300,'Ministry of Internal Affairs'!L6:L300,"GEL",'Ministry of Internal Affairs'!M6:M300,"Material Assistance")+SUMIFS('Ministry of Justice'!K6:K300,'Ministry of Justice'!L6:L300,"GEL",'Ministry of Justice'!M6:M300,"Material Assistance")+SUMIFS('State Minister''s Office'!I6:I300,'State Minister''s Office'!J6:J300,"GEL",'State Minister''s Office'!K6:K300,"Material Assistance")+SUMIFS('Large-scale Committments '!J6:J303,'Large-scale Committments '!K6:K303,"GEL",'Large-scale Committments '!L6:L303,"Material Assistance")+SUMIFS(MOESD!K6:K300,MOESD!L6:L300,"GEL",MOESD!M6:M300,"Material Assistance") -> 101518.8 | O14: =IFERROR(__xludf.DUMMYFUNCTION("(L14*GOOGLEFINANCE(""Currency:EURGEL"")+(M14*GOOGLEFINANCE(""Currency:USDGEL"")+N14))"),295229.36) -> 295229.36
B15: MOESD | C15: =SUMIF(MOESD!H6:H300,"EUR",MOESD!G6:G300) -> 0 | D15: =SUMIF(MOESD!H6:H300,"USD",MOESD!G6:G300) -> 0 | E15: =SUMIF(MOESD!H6:H300,"GEL",MOESD!G6:G300) -> 0 | F15: =IFERROR(__xludf.DUMMYFUNCTION("(C15*GOOGLEFINANCE(""currency:eurgel""))+(D15*GOOGLEFINANCE(""currency:usdgel""))+E15"),0.0) -> 0 | G15: =SUMIF(MOESD!L6:L300,"EUR",MOESD!K6:K300) -> 0 | H15: =SUMIF(MOESD!L6:L300,"USD",MOESD!K6:K300) -> 0 | I15: =SUMIF(MOESD!L6:L300,"GEL",MOESD!K6:K300) -> 0 | J15: =IFERROR(__xludf.DUMMYFUNCTION("(G15*GOOGLEFINANCE(""currency:eurgel""))+(H15*GOOGLEFINANCE(""currency:usdgel""))+I15"),0.0) -> 0 | L15: Humanitarian Aid
B16: Ministry of Internal Affairs | C16: =SUMIF('Ministry of Internal Affairs'!H6:H300,"EUR",'Ministry of Internal Affairs'!G6:G300) -> 0 | D16: =SUMIF('Ministry of Internal Affairs'!H6:H300,"USD",'Ministry of Internal Affairs'!G6:G300) -> 0 | E16: =SUMIF('Ministry of Internal Affairs'!H6:H300,"GEL",'Ministry of Internal Affairs'!G6:G300) -> 0 | F16: =IFERROR(__xludf.DUMMYFUNCTION("(C16*GOOGLEFINANCE(""currency:eurgel""))+(D16*GOOGLEFINANCE(""currency:usdgel""))+E16"),0.0) -> 0 | G16: =SUMIF('Ministry of Internal Affairs'!L6:L300,"EUR",'Ministry of Internal Affairs'!K6:K300) -> 0 | H16: =SUMIF('Ministry of Internal Affairs'!L6:L300,"USD",'Ministry of Internal Affairs'!K6:K300) -> 0 | I16: =SUMIF('Ministry of Internal Affairs'!L6:L300,"GEL",'Ministry of Internal Affairs'!K6:K300) -> 0 | J16: =IFERROR(__xludf.DUMMYFUNCTION("(G16*GOOGLEFINANCE(""currency:eurgel""))+(H16*GOOGLEFINANCE(""currency:usdgel""))+I16"),0.0) -> 0 | L16: =SUMIFS('Economic Recovery'!I6:I300,'Economic Recovery'!J6:J300,"EUR",'Economic Recovery'!K6:K300,"Humanitarian Aid")+SUMIFS('Ministry of Env. and Agricultur'!J6:J305,'Ministry of Env. and Agricultur'!K6:K305,"EUR",'Ministry of Env. and Agricultur'!L6:L305,"Humanitarian Aid")+SUMIFS('Ministry of Education'!J6:J300,'Ministry of Education'!K6:K300,"EUR",'Ministry of Education'!L6:L300,"Humanitarian Aid")+SUMIFS('Human Rights'!J5:J300,'Human Rights'!K5:K300,"EUR",'Human Rights'!L5:L300,"Humanitarian Aid")+SUMIFS('Ministry of Health'!I6:I300,'Ministry of Health'!J6:J300,"EUR",'Ministry of Health'!K6:K300,"Humanitarian Aid")+SUMIFS('Humanitarian Aid'!K6:K300,'Humanitarian Aid'!L6:L300,"EUR",'Humanitarian Aid'!N6:N300,"Humanitarian Aid")+SUMIFS('Ministry of Defence'!L6:L300,'Ministry of Defence'!M6:M300,"EUR",'Ministry of Defence'!N6:N300,"Humanitarian Aid")+SUMIFS(MRDI!K6:K300,MRDI!L6:L300,"EUR",MRDI!M6:M300,"Humanitarian Aid")+SUMIFS('Ministry of Internal Affairs'!K6:K300,'Ministry of Internal Affairs'!L6:L300,"EUR",'Ministry of Internal Affairs'!M6:M300,"Humanitarian Aid")+SUMIFS('Ministry of Justice'!K6:K300,'Ministry of Justice'!L6:L300,"EUR",'Ministry of Justice'!M6:M300,"Humanitarian Aid")+SUMIFS('State Minister''s Office'!I6:I300,'State Minister''s Office'!J6:J300,"EUR",'State Minister''s Office'!K6:K300,"Humanitarian Aid")+SUMIFS('Large-scale Committments '!J6:J303,'Large-scale Committments '!K6:K303,"EUR",'Large-scale Committments '!L6:L303,"Humanitarian Aid")+SUMIFS(MOESD!K6:K300,MOESD!L6:L300,"EUR",MOESD!M6:M300,"Humanitarian Aid") -> 0 | M16: =SUMIFS('Economic Recovery'!I6:I300,'Economic Recovery'!J6:J300,"USD",'Economic Recovery'!K6:K300,"Humanitarian Aid")+SUMIFS('Ministry of Env. and Agricultur'!J6:J305,'Ministry of Env. and Agricultur'!K6:K305,"USD",'Ministry of Env. and Agricultur'!L6:L305,"Humanitarian Aid")+SUMIFS('Ministry of Education'!J6:J300,'Ministry of Education'!K6:K300,"USD",'Ministry of Education'!L6:L300,"Humanitarian Aid")+SUMIFS('Human Rights'!J5:J300,'Human Rights'!K5:K300,"USD",'Human Rights'!L5:L300,"Humanitarian Aid")+SUMIFS('Ministry of Health'!I6:I300,'Ministry of Health'!J6:J300,"USD",'Ministry of Health'!K6:K300,"Humanitarian Aid")+SUMIFS('Humanitarian Aid'!K6:K300,'Humanitarian Aid'!L6:L300,"USD",'Humanitarian Aid'!N6:N300,"Humanitarian Aid")+SUMIFS('Ministry of Defence'!L6:L300,'Ministry of Defence'!M6:M300,"USD",'Ministry of Defence'!N6:N300,"Humanitarian Aid")+SUMIFS(MRDI!K6:K300,MRDI!L6:L300,"USD",MRDI!M6:M300,"Humanitarian Aid")+SUMIFS('Ministry of Internal Affairs'!K6:K300,'Ministry of Internal Affairs'!L6:L300,"USD",'Ministry of Internal Affairs'!M6:M300,"Humanitarian Aid")+SUMIFS('Ministry of Justice'!K6:K300,'Ministry of Justice'!L6:L300,"USD",'Ministry of Justice'!M6:M300,"Humanitarian Aid")+SUMIFS('State Minister''s Office'!I6:I300,'State Minister''s Office'!J6:J300,"USD",'State Minister''s Office'!K6:K300,"Humanitarian Aid")+SUMIFS('Large-scale Committments '!J6:J303,'Large-scale Committments '!K6:K303,"USD",'Large-scale Committments '!L6:L303,"Humanitarian Aid")+SUMIFS(MOESD!K6:K300,MOESD!L6:L300,"USD",MOESD!M6:M300,"Humanitarian Aid") -> 16000 | N16: =SUMIFS('Economic Recovery'!I6:I300,'Economic Recovery'!J6:J300,"GEL",'Economic Recovery'!K6:K300,"Humanitarian Aid")+SUMIFS('Ministry of Env. and Agricultur'!J6:J305,'Ministry of Env. and Agricultur'!K6:K305,"GEL",'Ministry of Env. and Agricultur'!L6:L305,"Humanitarian Aid")+SUMIFS('Ministry of Education'!J6:J300,'Ministry of Education'!K6:K300,"GEL",'Ministry of Education'!L6:L300,"Humanitarian Aid")+SUMIFS('Human Rights'!J5:J300,'Human Rights'!K5:K300,"GEL",'Human Rights'!L5:L300,"Humanitarian Aid")+SUMIFS('Ministry of Health'!I6:I300,'Ministry of Health'!J6:J300,"GEL",'Ministry of Health'!K6:K300,"Humanitarian Aid")+SUMIFS('Humanitarian Aid'!K6:K300,'Humanitarian Aid'!L6:L300,"GEL",'Humanitarian Aid'!N6:N300,"Humanitarian Aid")+SUMIFS('Ministry of Defence'!L6:L300,'Ministry of Defence'!M6:M300,"GEL",'Ministry of Defence'!N6:N300,"Humanitarian Aid")+SUMIFS(MRDI!K6:K300,MRDI!L6:L300,"GEL",MRDI!M6:M300,"Humanitarian Aid")+SUMIFS('Ministry of Internal Affairs'!K6:K300,'Ministry of Internal Affairs'!L6:L300,"GEL",'Ministry of Internal Affairs'!M6:M300,"Humanitarian Aid")+SUMIFS('Ministry of Justice'!K6:K300,'Ministry of Justice'!L6:L300,"GEL",'Ministry of Justice'!M6:M300,"Humanitarian Aid")+SUMIFS('State Minister''s Office'!I6:I300,'State Minister''s Office'!J6:J300,"GEL",'State Minister''s Office'!K6:K300,"Humanitarian Aid")+SUMIFS('Large-scale Committments '!J6:J303,'Large-scale Committments '!K6:K303,"GEL",'Large-scale Committments '!L6:L303,"Humanitarian Aid")+SUMIFS(MOESD!K6:K300,MOESD!L6:L300,"GEL",MOESD!M6:M300,"Humanitarian Aid") -> 0 | O16: =IFERROR(__xludf.DUMMYFUNCTION("(L16*GOOGLEFINANCE(""Currency:EURGEL"")+(M16*GOOGLEFINANCE(""Currency:USDGEL"")+N16))"),50800.0) -> 50800
B17: Ministry of Justice | C17: =SUMIF('Ministry of Justice'!H6:H299,"EUR",'Ministry of Justice'!G6:G299) -> 0 | D17: =SUMIF('Ministry of Justice'!H6:H299,"USD",'Ministry of Justice'!G6:G299) -> 0 | E17: =SUMIF('Ministry of Justice'!H6:H299,"GEL",'Ministry of Justice'!G6:G299) -> 30000 | F17: =IFERROR(__xludf.DUMMYFUNCTION("(C17*GOOGLEFINANCE(""currency:eurgel""))+(D17*GOOGLEFINANCE(""currency:usdgel""))+E17"),30000.0) -> 30000 | G17: =SUMIF('Ministry of Justice'!L6:L300,"EUR",'Ministry of Justice'!K6:K300) -> 0 | H17: =SUMIF('Ministry of Justice'!L6:L300,"USD",'Ministry of Justice'!K6:K300) -> 0 | I17: =SUMIF('Ministry of Justice'!L6:L300,"GEL",'Ministry of Justice'!K6:K300) -> 0 | J17: =IFERROR(__xludf.DUMMYFUNCTION("(G17*GOOGLEFINANCE(""currency:eurgel""))+(H17*GOOGLEFINANCE(""currency:usdgel""))+I17"),0.0) -> 0 | L17: Others
B18: State Minister's Office | C18: =SUMIF('State Minister''s Office'!J6:J300,"EUR",'State Minister''s Office'!I6:I300) -> 0 | D18: =SUMIF('State Minister''s Office'!J6:J300,"USD",'State Minister''s Office'!I6:I300) -> 0 | E18: =SUMIF('State Minister''s Office'!J6:J300,"GEL",'State Minister''s Office'!I6:I300) -> 115118.8 | F18: =IFERROR(__xludf.DUMMYFUNCTION("(C18*GOOGLEFINANCE(""currency:eurgel""))+(D18*GOOGLEFINANCE(""currency:usdgel""))+E18"),115118.8) -> 115118.8 | G18: =SUMIF('State Minister''s Office'!J6:J300,"EUR",'State Minister''s Office'!I6:I300) -> 0 | H18: =SUMIF('State Minister''s Office'!J6:J300,"USD",'State Minister''s Office'!I6:I300) -> 0 | I18: =SUMIF('State Minister''s Office'!J6:J300,"GEL",'State Minister''s Office'!I6:I300) -> 115118.8 | J18: =IFERROR(__xludf.DUMMYFUNCTION("(G18*GOOGLEFINANCE(""currency:eurgel""))+(H18*GOOGLEFINANCE(""currency:usdgel""))+I18"),115118.8) -> 115118.8 | L18: =SUMIFS('Economic Recovery'!I6:I300,'Economic Recovery'!J6:J300,"EUR",'Economic Recovery'!K6:K300,"Others")+SUMIFS('Ministry of Env. and Agricultur'!J6:J305,'Ministry of Env. and Agricultur'!K6:K305,"EUR",'Ministry of Env. and Agricultur'!L6:L305,"Others")+SUMIFS('Ministry of Education'!J6:J300,'Ministry of Education'!K6:K300,"EUR",'Ministry of Education'!L6:L300,"Others")+SUMIFS('Human Rights'!J5:J300,'Human Rights'!K5:K300,"EUR",'Human Rights'!L5:L300,"Others")+SUMIFS('Ministry of Health'!I6:I300,'Ministry of Health'!J6:J300,"EUR",'Ministry of Health'!K6:K300,"Others")+SUMIFS('Humanitarian Aid'!K6:K300,'Humanitarian Aid'!L6:L300,"EUR",'Humanitarian Aid'!N6:N300,"Others")+SUMIFS('Ministry of Defence'!L6:L300,'Ministry of Defence'!M6:M300,"EUR",'Ministry of Defence'!N6:N300,"Others")+SUMIFS(MRDI!K6:K300,MRDI!L6:L300,"EUR",MRDI!M6:M300,"Others")+SUMIFS('Ministry of Internal Affairs'!K6:K300,'Ministry of Internal Affairs'!L6:L300,"EUR",'Ministry of Internal Affairs'!M6:M300,"Others")+SUMIFS('Ministry of Justice'!K6:K300,'Ministry of Justice'!L6:L300,"EUR",'Ministry of Justice'!M6:M300,"Others")+SUMIFS('State Minister''s Office'!I6:I300,'State Minister''s Office'!J6:J300,"EUR",'State Minister''s Office'!K6:K300,"Others")+SUMIFS('Large-scale Committments '!J6:J303,'Large-scale Committments '!K6:K303,"EUR",'Large-scale Committments '!L6:L303,"Others")+SUMIFS(MOESD!K6:K300,MOESD!L6:L300,"EUR",MOESD!M6:M300,"Others") -> 0 | M18: =SUMIFS('Economic Recovery'!I6:I300,'Economic Recovery'!J6:J300,"USD",'Economic Recovery'!K6:K300,"Others")+SUMIFS('Ministry of Env. and Agricultur'!J6:J305,'Ministry of Env. and Agricultur'!K6:K305,"USD",'Ministry of Env. and Agricultur'!L6:L305,"Others")+SUMIFS('Ministry of Education'!J6:J300,'Ministry of Education'!K6:K300,"USD",'Ministry of Education'!L6:L300,"Others")+SUMIFS('Human Rights'!J5:J300,'Human Rights'!K5:K300,"USD",'Human Rights'!L5:L300,"Others")+SUMIFS('Ministry of Health'!I6:I300,'Ministry of Health'!J6:J300,"USD",'Ministry of Health'!K6:K300,"Others")+SUMIFS('Humanitarian Aid'!K6:K300,'Humanitarian Aid'!L6:L300,"USD",'Humanitarian Aid'!N6:N300,"Others")+SUMIFS('Ministry of Defence'!L6:L300,'Ministry of Defence'!M6:M300,"USD",'Ministry of Defence'!N6:N300,"Others")+SUMIFS(MRDI!K6:K300,MRDI!L6:L300,"USD",MRDI!M6:M300,"Others")+SUMIFS('Ministry of Internal Affairs'!K6:K300,'Ministry of Internal Affairs'!L6:L300,"USD",'Ministry of Internal Affairs'!M6:M300,"Others")+SUMIFS('Ministry of Justice'!K6:K300,'Ministry of Justice'!L6:L300,"USD",'Ministry of Justice'!M6:M300,"Others")+SUMIFS('State Minister''s Office'!I6:I300,'State Minister''s Office'!J6:J300,"USD",'State Minister''s Office'!K6:K300,"Others")+SUMIFS('Large-scale Committments '!J6:J303,'Large-scale Committments '!K6:K303,"USD",'Large-scale Committments '!L6:L303,"Others")+SUMIFS(MOESD!K6:K300,MOESD!L6:L300,"USD",MOESD!M6:M300,"Others") -> 1700 | N18: =SUMIFS('Economic Recovery'!I6:I300,'Economic Recovery'!J6:J300,"GEL",'Economic Recovery'!K6:K300,"Others")+SUMIFS('Ministry of Env. and Agricultur'!J6:J305,'Ministry of Env. and Agricultur'!K6:K305,"GEL",'Ministry of Env. and Agricultur'!L6:L305,"Others")+SUMIFS('Ministry of Education'!J6:J300,'Ministry of Education'!K6:K300,"GEL",'Ministry of Education'!L6:L300,"Others")+SUMIFS('Human Rights'!J5:J300,'Human Rights'!K5:K300,"GEL",'Human Rights'!L5:L300,"Others")+SUMIFS('Ministry of Health'!I6:I300,'Ministry of Health'!J6:J300,"GEL",'Ministry of Health'!K6:K300,"Others")+SUMIFS('Humanitarian Aid'!K6:K300,'Humanitarian Aid'!L6:L300,"GEL",'Humanitarian Aid'!N6:N300,"Others")+SUMIFS('Ministry of Defence'!L6:L300,'Ministry of Defence'!M6:M300,"GEL",'Ministry of Defence'!N6:N300,"Others")+SUMIFS(MRDI!K6:K300,MRDI!L6:L300,"GEL",MRDI!M6:M300,"Others")+SUMIFS('Ministry of Internal Affairs'!K6:K300,'Ministry of Internal Affairs'!L6:L300,"GEL",'Ministry of Internal Affairs'!M6:M300,"Others")+SUMIFS('Ministry of Justice'!K6:K300,'Ministry of Justice'!L6:L300,"GEL",'Ministry of Justice'!M6:M300,"Others")+SUMIFS('State Minister''s Office'!I6:I300,'State Minister''s Office'!J6:J300,"GEL",'State Minister''s Office'!K6:K300,"Others")+SUMIFS('Large-scale Committments '!J6:J303,'Large-scale Committments '!K6:K303,"GEL",'Large-scale Committments '!L6:L303,"Others")+SUMIFS(MOESD!K6:K300,MOESD!L6:L300,"GEL",MOESD!M6:M300,"Others") -> 0 | O18: =IFERROR(__xludf.DUMMYFUNCTION("(L18*GOOGLEFINANCE(""Currency:EURGEL"")+(M18*GOOGLEFINANCE(""Currency:USDGEL"")+N18))"),5397.5) -> 5397.5
B19: Large-scale committments | C19: =SUMIF('Large-scale Committments '!K6:K303,"EUR",'Large-scale Committments '!I6:I303) -> 139300000 | D19: =SUMIF('Large-scale Committments '!K6:K303,"USD",'Large-scale Committments '!I6:I303) -> 1100000 | E19: =SUMIF('Large-scale Committments '!K6:K303,"GEL",'Large-scale Committments '!I6:I303) -> 0 | F19: =IFERROR(__xludf.DUMMYFUNCTION("(C19*GOOGLEFINANCE(""currency:eurgel""))+(D19*GOOGLEFINANCE(""currency:usdgel""))+E19"),4.839120116E8) -> 483912011.6 | G19: =SUMIF('Large-scale Committments '!K6:K303,"EUR",'Large-scale Committments '!J6:J303) -> 159300000 | H19: =SUMIF('Large-scale Committments '!K6:K303,"USD",'Large-scale Committments '!J6:J303) -> 1100000 | I19: =SUMIF('Large-scale Committments '!K6:K303,"GEL",'Large-scale Committments '!J6:J303) -> 0 | J19: =IFERROR(__xludf.DUMMYFUNCTION("(G19*GOOGLEFINANCE(""currency:eurgel""))+(H19*GOOGLEFINANCE(""currency:usdgel""))+I19"),5.528882516E8) -> 552888251.6
B20: Total | C20: =SUM(C7:C19) -> 139450417 | D20: 1297260 | E20: 1031345619 | F20: 1516402691 | G20: 159505417 | H20: 1297748 | I20: 115118.8 | J20: 554339664.9

Sheet Ministry of Env. and Agricultur
A1: COVID-19 RESPONSE FOR PREPAREDENESS | R1: DATE OF UPDATE:
A3: # | B3: NEEDS | I3: SUPPORT PROVIDED BY DEV PARTNERS | N3: Status | O3: Georgraphic Coverage | R3: Contact Person (DONORS)
A5: 1 | B5: Initiator | C5: Description | D5: PRODUCTS/REQUIREMENTS | E5: NUMBER | F5: BUDGET PER SUBJECT | G5: BUDGET | H5: Currency | I5: Organization | J5: Budget Provided | K5: Currency | L5: Assistance Type | M5: Comment | N5: 1. Completed 2. Agreed with the donor/partner - is currently in process 3. Currently negotiating with donor/partner 4. Exploring support opportunities | O5: (Please, select from the list) Central Level Local Level (Please select the region or municipality) | P5: (Please, select from the list) Regions | Q5: (Please, select from the list) Municipalities | R5: DONOR | S5: GOV
A6: 2 | B6: Ministry of Environment Protection and Agriculture | C6: National Food Agency of the MEPA is main body in the country responsible for monitoring and supervision of food related activities and is maintaining routine surveillance for the effective fulfillment of its obligations, wich requires relevant equipments and and amenities needed: | D6: Pick-up trucks | E6: 100 | L6: Material Assistance | N6: 4. Exploring support opportunities | S6: Khatia Tsilosani; khatia.tsilosani@mepa.gov.ge; 577 080048
A7: 3 | D7: Sprayers | E7: 100 | L7: Material Assistance | N7: 4. Exploring support opportunities
A8: 4 | D8: Laptops | E8: 100 | L8: Material Assistance | N8: 4. Exploring support opportunities
A9: 5 | D9: Tablets | E9: 100 | L9: Material Assistance | N9: 4. Exploring support opportunities
A10: 6 | D10: Biosafety equipment (masks, glasses, gloves, boots, etc.) | E10: 200 | L10: Material Assistance | N10: 4. Exploring support opportunities
A11: 7 | D11: Veterinary biosafety equipment | E11: 200 | L11: Material Assistance | N11: 4. Exploring support opportunities
A12: 8 | D12: Extensive material aid required in the veterinary sector, including respirators, first aid kits, insecticides and acaricides for animal treatment | L12: Material Assistance | N12: 4. Exploring support opportunities
A13: 9 | D13: Strengthening laboratory capacity of the MEPA not only in Tbilisi central office, but also in regions and to create hub of reference laboratory. | L13: TA/Expert Consultancy | N13: 4. Exploring support opportunities
A14: 10 | D14: Special equipment for staff of Environmental Supervision Department to ensure maintenance of quarantine rules in affected regions | L14: Material Assistance | N14: 4. Exploring support opportunities
A15: 11 | D15: Disinfectants (wide spectrum: antiviral/antibacterial) | E15: 1000 | L15: Material Assistance | N15: 4. Exploring support opportunities
A16: 12 | D16: Information campaigns aimed at private sector representatives to raise their awareness of recent challenges COVID 2019. | L16: Material Assistance | N16: 4. Exploring support opportunities
A17: 13 | D17: Hand disinfectants (500 ml volume each) | E17: 300 | L17: Material Assistance | N17: 4. Exploring support opportunities
A18: 14 | D18: Head covers | E18: 185000 | L18: Material Assistance | N18: 4. Exploring support opportunities
A19: 15 | D19: Disposable shoe covers for farms (Tyvek skid resistant FC boot covers in gray) | E19: 185000 | L19: Material Assistance | N19: 4. Exploring support opportunities
A20: 16 | D20: Safety splash goggles | E20: 5000 | L20: Material Assistance | N20: 4. Exploring support opportunities
A21: 17 | D21: Multi-use tuberculin needles | E21: 10000 | L21: Material Assistance | N21: 4. Exploring support opportunities
A22: 18 | D22: Thermal containers (10-15 ml volume) | E22: 350 | L22: Material Assistance | N22: 4. Exploring support opportunities
A23: 19 | D23: Bag, Biohazard, High Temperatures (size L) | E23: 5000 | L23: Material Assistance | N23: 4. Exploring support opportunities
A24: 20 | D24: Bag, Biohazard, High Temperature (size XL) | E24: 3000 | L24: Material Assistance | N24: 4. Exploring support opportunities
A25: 21 | D25: First aid kits | E25: 75 | L25: Material Assistance | N25: 4. Exploring support opportunities
A26: 22 | D26: Automatic tuberculin syringes | E26: 100 | L26: Material Assistance | N26: 4. Exploring support opportunities
A27: 23 | D27: Coats | E27: 185000 | L27: Material Assistance | N27: 4. Exploring support opportunities
A28: 24 | D28: Automatic vaccine syringes | E28: 200 | L28: Material Assistance | N28: 4. Exploring support opportunities
A29: 25 | D29: Clothing, latex gloves (size L, XL) | E29: 500000 | L29: Material Assistance | N29: 4. Exploring support opportunities
A30: 26 | D30: N95-N98 respirators with bioprotection | E30: 445000 | L30: Material Assistance | N30: 4. Exploring support opportunities
A31: 27 | D31: Clothing, suits, Tyvek | E31: 260000 | L31: Material Assistance | N31: 4. Exploring support opportunities
A32: 28 | D32: Insecto-acaricides for treating animals | E32: 1500 | L32: Material Assistance | N32: 4. Exploring support opportunities
A33: 29 | D33: Strengthening the capacity of Extension offices and NFA regional representations in the regions to reach as many farmers as possible. | L33: TA/Expert Consultancy | N33: 4. Exploring support opportunities
C34: Programs to tackle food security challenges and respond the need of population toward primary food products: | D34: Financial Incentive Program for Registered Agricultural Landowners/Beneficiaries | E34: 406 000 ha | F34: 800 GEL per 1 ha | G34: 324800000 | H34: GEL | N34: 4. Exploring support opportunities
D35: Support program for Primary Production | E35: 50 000 ha | G35: 100000000 | H35: GEL | N35: 4. Exploring support opportunities
A36: 30 | D36: Promotion of appropriate measures for agri-technical tillage of agricultural plots (ploughing activities) through subsidies | L36: Financial Assistance - not specified | N36: 4. Exploring support opportunities
A37: 31 | D37: Support program for production of wheat | E37: 30 000 ha; 4-5 wheat storage enterprises will be created | G37: 30000000 | H37: GEL | L37: Others | N37: 4. Exploring support opportunities | S37: Nikoloz Chimakadze 577 403 736 Nikoloz.chimakadze@mepa.gov.ge
D38: Support program for spring and winter activities in 2020 | E38: 40 000 ha | F38: 160 GEL per 1 ha | G38: 6400000 | H38: GEL | N38: 4. Exploring support opportunities
A39: 32 | D39: Support program to increase the land area for sunflower crops and support of oil production | E39: 10 000 ha; 10-15 oil enterprises will be created/rehabilitated | G39: 10000000 | H39: GEL | L39: Others | N39: 4. Exploring support opportunities
A40: 33 | D40: Support program to increase the production of existing fish farms and aquaculture | G40: 5000000 | H40: GEL | L40: Others | N40: 4. Exploring support opportunities
D41: Support program for provision of agricultural plots with irrigation | E41: 30 000ha; 150 wells | G41: 150000000 | H41: GEL | N41: 4. Exploring support opportunities
A42: 34 | D42: Support the production of meat under animal husbandry and production of combined feed | G42: 5000000 | H42: GEL | L42: Others | N42: 4. Exploring support opportunities
A43: 35 | D43: Support the dairy farming development under animal husbandry and primary feed production | G43: 15000000 | H43: GEL | L43: Others | N43: 4. Exploring support opportunities
A44: 36 | D44: Support of Agri production (machinery and greenhouses) | G44: 15000000 | H44: GEL | L44: Others | N44: 4. Exploring support opportunities
D45: Support program for Young Entrepreneurs | E45: at least 1 000 entrepreneurs | G45: 60000000 | H45: GEL | N45: 4. Exploring support opportunities
A46: 37 | D46: Support program for arrangement of anti hail netting | E46: 5 000 ha | G46: 200000000 | H46: GEL | L46: Others | N46: 4. Exploring support opportunities
A47: 38 | C47: Programs for irrigation and infrastucture | D47: Arrangement of drip irrigation systems | L47: Others | N47: 4. Exploring support opportunities
A48: 39 | D48: Support program for existing enterprises and the rehabilitation of inactive enterprises | E48: 250 | G48: 50000000 | H48: GEL | L48: Others | N48: 4. Exploring support opportunities
A49: 40 | D49: Co-financing program of processing and storage enterprises | E49: at least 90 Unit | G49: 50000000 | H49: GEL | L49: Others | N49: 4. Exploring support opportunities
A50: 41 | D50: Support program to increase the lending of agriculture through the banking sector | L50: Others | N50: 4. Exploring support opportunities
A51: 42
A52: 43
A53: 44
A54: 45
A55: 46
A56: 47
A57: 48
A58: 49
A59: 50
A60: 51
A61: 52
A62: 53
A63: 54
A64: 55
A65: 56
A66: 57
A67: 58
A68: 59
A69: 60
A70: 61
A71: 62
A72: 63
A73: 64
A74: 65
A75: 66
A76: 67
A77: 68
A78: 69
A79: 70
A80: 71
A81: 72
A82: 73
A83: 74
A84: 75
A85: 76
A86: 77
A87: 78
A88: 79
A89: 80
A90: 81
A91: 82
A92: 83
A93: 84
A94: 85
A95: 86
A96: 87
A97: 88
A98: 89
A99: 90
A100: 91
A101: 92
A102: 93
A103: 94
A104: 95
A105: 96
A106: 97
A107: 98
A108: 99
A109: 100
A110: 101
A111: 102
A112: 103
A113: 104
A114: 105
A115: 106
A116: 107
A117: 108
A118: 109
A119: 110
A120: 111
A121: 112
A122: 113
A123: 114
A124: 115
A125: 116
A126: 117
A127: 118
A128: 119
A129: 120
A130: 121
A131: 122
A132: 123
A133: 124
A134: 125
A135: 126
A136: 127
A137: 128
A138: 129
A139: 130
A140: 131
A141: 132
A142: 133
A143: 134
A144: 135
A145: 136
A146: 137
A147: 138
A148: 139
A149: 140
A150: 141
A151: 142
A152: 143
A153: 144
A154: 145
A155: 146
A156: 147
A157: 148
A158: 149
A159: 150
A160: 151
A161: 152
A162: 153
A163: 154
A164: 155
A165: 156
A166: 157
A167: 158
A168: 159
A169: 160
A170: 161
A171: 162
A172: 163
A173: 164
A174: 165
A175: 166
A176: 167
A177: 168
A178: 169
A179: 170
A180: 171
A181: 172
A182: 173
A183: 174
A184: 175
A185: 176
A186: 177
A187: 178
A188: 179
A189: 180
A190: 181
A191: 182
A192: 183
A193: 184
A194: 185
A195: 186
A196: 187
A197: 188
A198: 189
A199: 190
A200: 191
A201: 192
A202: 193
... 124 more rows

Sheet Economic Recovery
A1: COVID-19 RESPONSE FOR PREPAREDENESS | Q1: DATE OF UPDATE:
A3: # | B3: NEEDS | H3: SUPPORT PROVIDED BY DEV PARTNERS | M3: Status | N3: Georgraphic Coverage | Q3: Contact Person (DONORS)
A5: 1 | B5: Initiator | C5: Description | D5: PRODUCTS/REQUIREMENTS | E5: NUMBER | F5: BUDGET PER SUBJECT | G5: BUDGET | H5: Organization | I5: Budget | J5: Currency | K5: Assistance Type | L5: Comment | M5: 1. Completed 2. Agreed with the donor/partner - is currently in process 3. Currently negotiating with donor/partner 4. Exploring support opportunities | N5: (Please, select from the list) Central Level Local Level (Please select the region or municipality) | O5: Please, select from the list) Regions | P5: (Please, select from the list) Municipalities | Q5: DONOR | R5: GOV
A6: 2 | B6: Administration of the Government | C6: For Georgia's economy to recover quickly from the ravages caused by COVID-19, ways and means must be found to prevent a massive collapse and set rapid measures for swift recovery. Many businesses are directly impacted by the very measures imposed to contain the spread of the virus, to this end Government's pledge is to design the effective recovery policy plan to respond the economic recession | D6: 1.Technical assistance to develop the Economic Recovery Plan: setting the pull of profound experts (rapid response team - international & local) in economy | H6: USAID/Economic Governance Program | K6: TA/Expert Consultancy | M6: 3. Currently negotiating with donor/partner | N6: Central Level | Q6: Natalia Beruashvili; 599 537 234 | R6: Beka Lilashvili; liluashvilibeqa@gmail.com; 539991419
A7: 3 | D7: 2. Partnering with other relevant programmes to ensure the holistic and coherent donor coordination | H7: USAID/Economic Governance Program & others | K7: TA/Expert Consultancy | M7: 3. Currently negotiating with donor/partner | N7: Central Level
A8: 4 | D8: 3. Support in the implementation of the Plan | H8: USAID/Economic Governance Program & others | K8: TA/Expert Consultancy | M8: 4. Exploring support opportunities | N8: Countrywide
A9: 25
A10: 28
A11: 29
A12: 30
A13: 31
A14: 32
A15: 33
A16: 34
A17: 35
A18: 36
A19: 37
A20: 38
A21: 39
A22: 40
A23: 41
A24: 42
A25: 43
A26: 44
A27: 45
A28: 46
A29: 47
A30: 48
A31: 49
A32: 50
A33: 51
A34: 52
A35: 53
A36: 54
A37: 55
A38: 56
A39: 57
A40: 58
A41: 59
A42: 60
A43: 61
A44: 62
A45: 63
A46: 64
A47: 65
A48: 66
A49: 67
A50: 68
A51: 69
A52: 70
A53: 71
A54: 72
A55: 73
A56: 74
A57: 75
A58: 76
A59: 77
A60: 78
A61: 79
A62: 80
A63: 81
A64: 82
A65: 83
A66: 84
A67: 85
A68: 86
A69: 87
A70: 88
A71: 89
A72: 90
A73: 91
A74: 92
A75: 93
A76: 94
A77: 95
A78: 96
A79: 97
A80: 98
A81: 99
A82: 100
A83: 101
A84: 102
A85: 103
A86: 104
A87: 105
A88: 106
A89: 107
A90: 108
A91: 109
A92: 110
A93: 111
A94: 112
A95: 113
A96: 114
A97: 115
A98: 116
A99: 117
A100: 118
A101: 119
A102: 120
A103: 121
A104: 122
A105: 123
A106: 124
A107: 125
A108: 126
A109: 127
A110: 128
A111: 129
A112: 130
A113: 131
A114: 132
A115: 133
A116: 134
A117: 135
A118: 136
A119: 137
A120: 138
A121: 139
A122: 140
A123: 141
A124: 142
A125: 143
A126: 144
A127: 145
A128: 146
A129: 147
A130: 148
A131: 149
A132: 150
A133: 151
A134: 152
A135: 153
A136: 154
A137: 155
A138: 156
A139: 157
A140: 158
A141: 159
A142: 160
A143: 161
A144: 162
A145: 163
A146: 164
A147: 165
A148: 166
A149: 167
A150: 168
A151: 169
A152: 170
A153: 171
A154: 172
A155: 173
A156: 174
A157: 175
A158: 176
A159: 177
A160: 178
A161: 179
A162: 180
A163: 181
A164: 182
A165: 183
A166: 184
A167: 185
A168: 186
A169: 187
A170: 188
A171: 189
A172: 190
A173: 191
A174: 192
A175: 193
A176: 194
A177: 195
A178: 196
A179: 197
A180: 198
A181: 199
A182: 200
A183: 201
A184: 202
A185: 203
A186: 204
A187: 205
A188: 206
A189: 207
A190: 208
A191: 209
A192: 210
A193: 211
A194: 212
A195: 213
A196: 214
A197: 215
A198: 216
A199: 217
A200: 218
A201: 219
A202: 220
... 80 more rows

Sheet Ministry of Education
A1: COVID-19 RESPONSE FOR PREPAREDENESS | R1: DATE OF UPDATE:
A3: # | B3: NEEDS | I3: SUPPORT PROVIDED BY DEV PARTNERS | N3: Status | O3: Georgraphic Coverage | R3: Contact Person (DONORS)
A5: 1 | B5: Initiator | C5: Description | D5: PRODUCTS/REQUIREMENTS | E5: NUMBER | F5: BUDGET PER SUBJECT | G5: BUDGET | H5: Currency | I5: Organization | J5: Budget Provided | K5: Currency | L5: Assistance Type | M5: Comment | N5: 1. Completed 2. Agreed with the donor/partner - is currently in process 3. Currently negotiating with donor/partner 4. Exploring support opportunities | O5: (Please, select from the list) Central Level Local Level (Please select the region or municipality) | P5: (Please, select from the list) Regions | Q5: (Please, select from the list) Municipalities | R5: DONOR | S5: GOV
A6: 2 | B6: GIZ | C6: For the proper functioning of the economy, it is of utmost importance, on the one hand, to raise employment / self-employment and, on the other hand, to quick supply the private sector with the workforce. It is essential for the system to quickly respond and recover, to ensure business development by conducting short-term training courses, as well as the rapid employment of the citizens. | D6: Supplement to current technical assistance, in particular the procurement of expertise in the first component (local) and the procurement of equipment in the second component. | G6: 150000 | H6: EUR | I6: GIZ/BMZ | J6: 150000 | K6: EUR | L6: TA/Expert Consultancy | M6: The first component - central; Second - local colleges in different regions. | N6: 2. Agreed with the donor/partner - is currently in process | O6: Central Level
A7: 3
A8: 4
A9: 5
A10: 6
A11: 7
A12: 8
A13: 9
A14: 10
A15: 11
A16: 12
A17: 13
A18: 14
A19: 15
A20: 16
A21: 17
A22: 18
A23: 19
A24: 20
A25: 21
A26: 22
A27: 23
A28: 24
A29: 25
A30: 26
A31: 27
A32: 28
A33: 29
A34: 30
A35: 31
A36: 32
A37: 33
A38: 34
A39: 35
A40: 36
A41: 37
A42: 38
A43: 39
A44: 40
A45: 41
A46: 42
A47: 43
A48: 44
A49: 45
A50: 46
A51: 47
A52: 48
A53: 49
A54: 50
A55: 51
A56: 52
A57: 53
A58: 54
A59: 55
A60: 56
A61: 57
A62: 58
A63: 59
A64: 60
A65: 61
A66: 62
A67: 63
A68: 64
A69: 65
A70: 66
A71: 67
A72: 68
A73: 69
A74: 70
A75: 71
A76: 72
A77: 73
A78: 74
A79: 75
A80: 76
A81: 77
A82: 78
A83: 79
A84: 80
A85: 81
A86: 82
A87: 83
A88: 84
A89: 85
A90: 86
A91: 87
A92: 88
A93: 89
A94: 90
A95: 91
A96: 92
A97: 93
A98: 94
A99: 95
A100: 96
A101: 97
A102: 98
A103: 99
A104: 100
A105: 101
A106: 102
A107: 103
A108: 104
A109: 105
A110: 106
A111: 107
A112: 108
A113: 109
A114: 110
A115: 111
A116: 112
A117: 113
A118: 114
A119: 115
A120: 116
A121: 117
A122: 118
A123: 119
A124: 120
A125: 121
A126: 122
A127: 123
A128: 124
A129: 125
A130: 126
A131: 127
A132: 128
A133: 129
A134: 130
A135: 131
A136: 132
A137: 133
A138: 134
A139: 135
A140: 136
A141: 137
A142: 138
A143: 139
A144: 140
A145: 141
A146: 142
A147: 143
A148: 144
A149: 145
A150: 146
A151: 147
A152: 148
A153: 149
A154: 150
A155: 151
A156: 152
A157: 153
A158: 154
A159: 155
A160: 156
A161: 157
A162: 158
A163: 159
A164: 160
A165: 161
A166: 162
A167: 163
A168: 164
A169: 165
A170: 166
A171: 167
A172: 168
A173: 169
A174: 170
A175: 171
A176: 172
A177: 173
A178: 174
A179: 175
A180: 176
A181: 177
A182: 178
A183: 179
A184: 180
A185: 181
A186: 182
A187: 183
A188: 184
A189: 185
A190: 186
A191: 187
A192: 188
A193: 189
A194: 190
A195: 191
A196: 192
A197: 193
A198: 194
A199: 195
A200: 196
A201: 197
A202: 198
... 102 more rows

Sheet Human Rights
A1: COVID-19 RESPONSE FOR PREPAREDENESS | R1: DATE OF UPDATE:
A2: # | C2: NEEDS | I2: SUPPORT PROVIDED BY DEV PARTNERS | N2: Status | O2: Georgraphic Coverage | R2: Contact Person (DONORS)
A4: 1 | B4: Initiator | C4: Description | D4: PRODUCTS/REQUIREMENTS | E4: NUMBER | F4: BUDGET PER UNIT | G4: TOTAL BUDGET | H4: Currency | I4: Organization | J4: Budget Provided | K4: Currency | L4: Assistance Type | M4: Comment | N4: 1. Completed 2. Agreed with the donor/partner - is currently in process 3. Currently negotiating with donor/partner 4. Exploring support opportunities | O4: Central Level or Local Level (Please select the region or municipality) | P4: (Please, select from the list) Regions | Q4: (Please, select from the list) Municipalities | R4: DONOR | S4: GOV
A5: 2 | B5: Administration of the Government of Georgia | C5: Access to Information: Technical support | D5: Translation of web-platform www.StopCov.ge into Armenian language | E5: N/A | F5: N/A | G5: =J5 -> 417 | H5: EUR | I5: COE / UNDP | J5: 417 | K5: EUR | L5: TA/Expert Consultancy | M5: Web-page is being translated in parts. Some parts are ready, some are in progress | N5: 2. Agreed with the donor/partner - is currently in process | R5: COE: Nino Gobronidze - Nino.GOBRONIDZE@coe.int; UNDP: Tinatin Tkeshelashvili - tinatin.tkeshelashvili@undp.org | S5: Lela Akiashvili; lakiashvili@gov.ge; 599914323
A6: 3 | D6: Printing of the AOG prepared brochure “Frequently asked questions in quarantine zones” into Arm & Az languages | E6: Georgian - 15,000 Armenian - 10,000 Azerbaijani - 10,000 | G6: =J6 ->  | I6: UNDP | L6: TA/Expert Consultancy | N6: 1. Completed | R6: UNDP: Tinatin Tkeshelashvili - tinatin.tkeshelashvili@undp.org | S6: Lela Akiashvili; lakiashvili@gov.ge; 599914323
A7: 4 | D7: Development of accessible version of StopCov.ge for persons with disabilities | G7: =J7 ->  | L7: TA/Expert Consultancy | N7: 3. Currently negotiating with donor/partner
A8: 5 | D8: Translation and printing of infomration material into minority languages | E8: Georgian - 50,000 Armenian - 50,000 Azerbaijani - 50,000 | G8: =J8 -> 4000 | H8: USD | I8: UNICEF | J8: 4000 | K8: USD | L8: TA/Expert Consultancy | N8: 2. Agreed with the donor/partner - is currently in process
A9: 6 | D9: Translation and delivery of information to Roma communities | N9: 2. Agreed with the donor/partner - is currently in process
A10: 7 | B10: UNDP | D10: Informational videos adapted with subtitles, sign language translation, translated in minority languages and in easy-readable formats for people with psycho-social needs | G10: =J10 -> 20000 | H10: USD | I10: UNDP | J10: 20000 | K10: USD | L10: TA/Expert Consultancy
A11: 8 | D11: Information produced in easy-readable formats for people with psycho-social needs distributed in psychiatric phasilities and boarding houses
A12: 9 | D12: Videos for PwDs transmitted through public broadcasters
A13: 10 | B13: UN Women | D13: On-line platform on Facebook “Women against COVID-19” for spreading StopCov.ge information | E13: 1 unit | F13: 300 | G13: 300 | H13: =K13 -> USD | I13: UN Women | J13: 300 | K13: USD | L13: TA/Expert Consultancy | N13: 3. Currently negotiating with donor/partner
A14: 11 | D14: Posters on COVID response printed in Armenian and Azerbaijani languages shared with grassroots’ communities in Kvemo Qartli and Samtskhe Javakheti | E14: Armenian - 150 Azerbaijani - 150 | F14: 1 | G14: 100 | H14: USD | J14: 100 | K14: USD | L14: TA/Expert Consultancy | N14: 3. Currently negotiating with donor/partner
A15: 12 | B15: Administration of the Government of Georgia | C15: Access to Services for Vulnerable Groups: Victims of Domestic Violence | D15: Scale up the capacity of domestic violence shelters by providing needs-based temporary rent-support for beneficiaries | E15: 20 units | F15: 300 | G15: 6000 | H15: USD | J15: 6000 | K15: USD | L15: TA/Expert Consultancy | N15: 2. Agreed with the donor/partner - is currently in process | S15: Lela Akiashvili; lakiashvili@gov.ge; 599914323; Meri Maglaperidze; 599161615
A16: 13 | D16: Development of post-crisis (post-shelter) support programmes for victims of domestic violence | G16: 16000 | H16: USD | J16: 16000 | K16: USD | L16: TA/Expert Consultancy | N16: 2. Agreed with the donor/partner - is currently in process | S16: Lela Akiashvili; lakiashvili@gov.ge; 599914323
A17: 14 | D17: Establish distance phsychological support services | N17: 4. Exploring support opportunities
A18: 15 | B18: UN Women | D18: Support to the functioning of two NGO-run domestic violence crisis centers in Tsaishi and Telavi | G18: =J18 -> 41000 | H18: USD | I18: UN Women | J18: 41000 | K18: USD | L18: TA/Expert Consultancy | N18: 2. Agreed with the donor/partner - is currently in process
A19: 16 | B19: Administration of the Government of Georgia | C19: Support to Vulnerable Groups: Persons with Disabilities | D19: Distribution of hygiene and sanitation packages for Persons with impairment Disabilities in Tbilisi | G19: =J19 -> 10000 | H19: USD | I19: UNDP | J19: 10000 | K19: USD | L19: TA/Expert Consultancy | N19: 4. Exploring support opportunities | O19: Central Level | S19: Lela Akiashvili; lakiashvili@gov.ge; 599914323
A20: 17 | D20: Support to service-providers in developing distance services for Persons with Disabilities | G20: =J20 -> 10000 | H20: USD | J20: 10000 | K20: USD | L20: TA/Expert Consultancy | N20: 2. Agreed with the donor/partner - is currently in process
A21: 18 | D21: Establish distance phsychological support services for PwDs | H21: USD | K21: USD | N21: 2. Agreed with the donor/partner - is currently in process
A22: 19 | D22: Support in establishing protocols for treating PwD patients | G22: =J22 -> 5000 | H22: USD | J22: 5000 | K22: USD | L22: TA/Expert Consultancy | N22: 2. Agreed with the donor/partner - is currently in process
A23: 20 | D23: Support parents of Children with Disabilities | G23: =J23 ->  | I23: UNICEF | N23: 3. Currently negotiating with donor/partner
A24: 21 | C24: Support to Vulnerable Groups: Single Parents | D24: Provide online training for single-parents in practical professions (Accounting; Personal Financing; Microsoft Programmes: Excel, PowerPoint, Word; Resume Writing; Project Management; English language; Coding; Data science) | H24: =K24 ->  | N24: 3. Currently negotiating with donor/partner | S24: Lela Akiashvili; lakiashvili@gov.ge; 599914323
A25: 22 | D25: Food/medical aid | E25: 4113 (single parents registered) | N25: 3. Currently negotiating with donor/partner
A26: 23 | C26: Support to Vulnerable Groups: Persons involved in informal Economy | D26: Provide online training for persons involved in informal economy in practical professions (Accounting; Personal Financing; Microsoft Programmes: Excel, PowerPoint, Word; Resume Writing; Project Management; English language; Coding; Data science) | S26: Lela Akiashvili; lakiashvili@gov.ge; 599914323
A27: 24 | D27: Create a skill-matching data-base to connect persons involved in informal economy with businesses and potential employers | S27: Lela Akiashvili; lakiashvili@gov.ge; 599914323
A28: 25 | C28: Support to Vulnerable Groups: Women Groups and Civic Organizations in Regions | D28: Small-scale grants for community organizations to address COVID-19 related priority needs for vulnurable families
A29: 26 | D29: Food and medical aid support needed to Tetri Tskaro region, Village Kosalari | E29: 190 units | F29: USD 30 | G29: 5700 | H29: USD | K29: USD | M29: THIS IS URGENT | N29: 4. Exploring support opportunities | S29: Chinara Kojaeva; 579 35 14 54 Lela Akiashvili; lakiashvili@gov.ge; 599914323
A30: 27 | B30: UN Women | D30: Training to enhance vulnerable women’s entrepreneurship and small-business skills
A31: 28 | D31: Small-scale grants for women, women’s groups and their community organizations across Georgia to address COVID-19 related priority needs | G31: 55000 | H31: USD | I31: UN Women | J31: 55000 | K31: USD | L31: Financial Assistance - Grant | N31: 2. Agreed with the donor/partner - is currently in process
A32: 29 | B32: The State Ministry for Reconciliation and Civic Equality | C32: Support to Vulnerable Groups: Roma Communities | D32: Distribution of hygiene and sanitation packages for Roma communities in Gardabani, Dedoplistskharo, Tbilisi, Kobuleti, Kutaisi | G32: 16000 | H32: USD | I32: UNICEF | J32: 16000 | K32: USD | L32: Humanitarian Aid | N32: 2. Agreed with the donor/partner - is currently in process
A33: 30 | C33: Support to Vulnerable Groups: IDPs | D33: Distribution of hygiene and sanitation packages for IDP settelments | P33: Kvemo Kartli Region, Imereti, and Samegrelo-Zemo Svaneti | Q33: Gori, Kutaisi, Zugdidi
A34: 31 | D34: Distribution of information material for IDP settlements | P34: Kvemo Kartli Region, Imereti, and Samegrelo-Zemo Svaneti | Q34: Gori, Kutaisi, Zugdidi
A35: 32 | P35: Kvemo Kartli Region, Imereti, and Samegrelo-Zemo Svaneti | Q35: Gori, Kutaisi, Zugdidi
A36: 33
A37: 34
A38: 35
A39: 36
A40: 37
A41: 38
A42: 39
A43: 40
A44: 41
A45: 42
A46: 43
A47: 44
A48: 45
A49: 46
A50: 47
A51: 48
A52: 49
A53: 50
A54: 51
A55: 52
A56: 53
A57: 54
A58: 55
A59: 56
A60: 57
A61: 58
A62: 59
A63: 60
A64: 61
A65: 62
A66: 63
A67: 64
A68: 65
A69: 66
A70: 67
A71: 68
A72: 69
A73: 70
A74: 71
A75: 72
A76: 73
A77: 74
A78: 75
A79: 76
A80: 77
A81: 78
A82: 79
A83: 80
A84: 81
A85: 82
A86: 83
A87: 84
A88: 85
A89: 86
A90: 87
A91: 88
A92: 89
A93: 90
A94: 91
A95: 92
A96: 93
A97: 94
A98: 95
A99: 96
A100: 97
A101: 98
A102: 99
A103: 100
A104: 101
A105: 102
A106: 103
A107: 104
A108: 105
A109: 106
A110: 107
A111: 108
A112: 109
A113: 110
A114: 111
A115: 112
A116: 113
A117: 114
A118: 115
A119: 116
A120: 117
A121: 118
A122: 119
A123: 120
A124: 121
A125: 122
A126: 123
A127: 124
A128: 125
A129: 126
A130: 127
A131: 128
A132: 129
A133: 130
A134: 131
A135: 132
A136: 133
A137: 134
A138: 135
A139: 136
A140: 137
A141: 138
A142: 139
A143: 140
A144: 141
A145: 142
A146: 143
A147: 144
A148: 145
A149: 146
A150: 147
A151: 148
A152: 149
A153: 150
A154: 151
A155: 152
A156: 153
A157: 154
A158: 155
A159: 156
A160: 157
A161: 158
A162: 159
A163: 160
A164: 161
A165: 162
A166: 163
A167: 164
A168: 165
A169: 166
A170: 167
A171: 168
A172: 169
A173: 170
A174: 171
A175: 172
A176: 173
A177: 174
A178: 175
A179: 176
A180: 177
A181: 178
A182: 179
A183: 180
A184: 181
A185: 182
A186: 183
A187: 184
A188: 185
A189: 186
A190: 187
A191: 188
A192: 189
A193: 190
A194: 191
A195: 192
A196: 193
A197: 194
A198: 195
A199: 196
A200: 197
A201: 198
... 78 more rows

Sheet Ministry of Health
A1: COVID-19 RESPONSE FOR PREPAREDENESS | Q1: DATE OF UPDATE:
A3: # | B3: NEEDS | H3: SUPPORT PROVIDED BY DEV PARTNERS | M3: Status | N3: Georgraphic Coverage | Q3: Contact Person (DONORS)
A5: 1 | B5: Initiator | C5: PRODUCTS/REQUIREMENTS | D5: NUMBER | E5: BUDGET PER SUBJECT | F5: BUDGET (GEL) | G5: Currency | H5: Organization | I5: Budget provided | J5: Currency | K5: Assistance Type | L5: Comment | M5: 1. Completed 2. Agreed with the donor/partner - is currently in process 3. Currently negotiating with donor/partner 4. Exploring support opportunities | N5: (Please, select from the list) Central Level Local Level (Please select the region or municipality) | O5: (Please, select from the list) Regions | P5: (Please, select from the list) Municipalities | Q5: DONOR | R5: GOV
A6: 2 | B6: Ministry of Health | C6: Mechanical ventilation Unit, Mindray, SV300, with turbine, battery Powered, Interactive Color-Fluid Screen, for Adults and Pediatricians. | D6: 20 | E6: 20,000.00 | F6: 400000 | G6: GEL | K6: Material Assistance | M6: 4. Exploring support opportunities | Q6: Zhorzholiani Archil; archil.zhorzholiani@giz.de 599686211 | R6: Tamar Gabunia; tgabunia@moh.gov.ge; 599071018
A7: 3 | C7: Hazmat suits | D7: 50,000 | E7: 29 | F7: 1450000 | G7: GEL | K7: Material Assistance | M7: 4. Exploring support opportunities
A8: 4 | C8: 3-layer face masks | D8: 900,000 | E8: 1 | F8: 900000 | G8: GEL | H8: GIZ/BMZ | I8: 35000 | J8: EUR | K8: Material Assistance | L8: GIZ/BMZ will provide 100,000 face masks out of 900,000 | M8: 2. Agreed with the donor/partner - is currently in process
H9: WHO | I9: 316,12 | J9: USD | K9: Material Assistance | L9: 10,000 surgical masks and 200 masks type FFP2 | M9: 1. Completed | N9: Countrywide | Q9: Silviu Domente domentes@who.int 599475485 | R9: Tamar Gabunia; tgabunia@moh.gov.ge; 599071018
A10: 5 | C10: Sanitizer dispenser solution | D10: 15,000 L | E10: 48.9 | F10: 733500 | G10: GEL | H10: GIZ/BMZ | I10: 20000 | J10: EUR | K10: Material Assistance | L10: GIZ/BMZ will provide 2,000 L out of 15,000 L | M10: 2. Agreed with the donor/partner - is currently in process
A11: 6 | C11: Non-contact thermometer | D11: 2,500 | E11: 65 | F11: 162500 | G11: GEL | K11: Material Assistance | M11: 4. Exploring support opportunities
A12: 7 | C12: Mechanical ventilation apparatus - Hamilton T1, transportable, with portable oxygen aluminum balloon, with corresponding reducer. Required for portable balloon and central system connection | D12: 10 | E12: 54,925.00 | F12: 549250 | G12: GEL | K12: Material Assistance | M12: 4. Exploring support opportunities
A13: 8 | C13: Patient Monitor, Mindray, Umec 10, with Standard Monitoring Function (Saturation, ECG, Non-Invasive Pressure, Temperature, Pulse, Respiratory Rate) | D13: 20 | E13: 2,000.00 | F13: 40000 | G13: GEL | K13: Material Assistance | M13: 4. Exploring support opportunities
A14: 9 | C14: Nitrile glove | D14: 50,000 | E14: 0.3 | F14: 15000 | G14: GEL | H14: WHO | I14: 836,6 | J14: USD | K14: Material Assistance | L14: 10,000 examination gloves of three sizes (M, L and XL) | M14: 1. Completed | N14: Countrywide | Q14: Silviu Domente domentes@who.int 599475485 | R14: Tamar Gabunia; tgabunia@moh.gov.ge; 599071018
A15: 10 | C15: Shoe covers - biological | D15: 10,000 | E15: 6 | F15: 60000 | G15: GEL | K15: Material Assistance | M15: 4. Exploring support opportunities
A16: 11 | C16: Goggle-type glasses | D16: 45,000 | E16: 10 | F16: 450000 | G16: GEL | H16: WHO | I16: 212 | J16: USD | K16: Material Assistance | L16: 200 protective goggles | M16: 1. Completed | N16: Countrywide | Q16: Silviu Domente domentes@who.int 599475485 | R16: Tamar Gabunia; tgabunia@moh.gov.ge; 599071018
A17: 12 | C17: Surgical coat | D17: 40,000 | E17: 6 | F17: 240000 | G17: GEL | H17: WHO | I17: 1056 | J17: USD | K17: Material Assistance | L17: 1400 gowns AAMI level 3, non sterile, disp, of two sizes (L and XL) | M17: 1. Completed | N17: Countrywide | Q17: Silviu Domente domentes@who.int 599475485 | R17: Tamar Gabunia; tgabunia@moh.gov.ge; 599071018
A18: 13 | C18: TOTAL | D18: 1,112,550 | E18: 77,091.20 | F18: 5000250 | G18: GEL | M18: 4. Exploring support opportunities
A20: 14 | C20: Infectious Disease Hospital in Tbilisi: Refurbishment | K20: Material Assistance
C21: Infectious Disease Hospital in Tbilisi: Hospital equipment & supplies for beds | D21: 200 | K21: Material Assistance
A22: 15 | C22: Central Republican Hospital in Tbilisi: Reconstruction / refurbishment | K22: Material Assistance
A23: 16 | C23: Central Republican Hospital in Tbilisi: Hospital equipment & for supplies beds | D23: 350 | K23: Material Assistance
A24: 17 | C24: Hospital in Rukhi, Samegrelo: Hospital equipment & supplies for beds | D24: 350 | K24: Material Assistance
A25: 18 | C25: Republican Hospital in Batumi, Adjara: Hospital equipment and supplies for beds | D25: 150 | K25: Material Assistance
A26: 19 | C26: Personal Protective Equipment and Testing capacity building: i) Rapid Tests and reagents for PCR testing (including Cepheid cartridges); ii) access to needed supplies via global coordination mechanisms. | K26: Material Assistance
A27: 20 | C27: TA in strengthening emergency response capacity of hospitals and public health services: i) International TA in needs assessment, emergency response planning, monitoring and evaluation; ii) Improving infection prevention and control in local clinics, and improve capacity of physicians and nurses in managing severe COVID 19 | H27: WHO | I27: 9756 | J27: USD | K27: TA/Expert Consultancy | L27: Hospital Readiness Assessment | M27: 1. Completed | N27: Countrywide | Q27: Silviu Domente domentes@who.int 599475485 | R27: Tamar Gabunia; tgabunia@moh.gov.ge; 599071018
H28: WHO | I28: 1274 | J28: USD | K28: TA/Expert Consultancy | L28: Countribution to Tabletop Exercise in Batumi, organized by the ministry and NCDC | M28: 1. Completed | N28: Countrywide | Q28: Silviu Domente domentes@who.int 599475485 | R28: Tamar Gabunia; tgabunia@moh.gov.ge; 599071018
H29: WHO | I29: 350 | J29: USD | K29: TA/Expert Consultancy | L29: Distance training on clinical management of severe cases | M29: 1. Completed | N29: Central Level | R29: Tamar Gabunia; tgabunia@moh.gov.ge; 599071018
A30: 21 | C30: Building information system for effective COVID 19 surveillance, data management and contact tracing systems. (These systems can be built on existing e-government structures). | D30: TBD | E30: TBD | F30: TBD | K30: TA/Expert Consultancy | M30: 3. Currently negotiating with donor/partner | N30: Countrywide | Q30: Salome Odisharia, GRF Project Manager E-mail: salome.odisharia@undp.org Cell: 577798707 Naniko Tsiklauri, PAR Project Manager Cell: +599 545259 E-mail: nana.tsiklauri@undp.org
A31: 22 | C31: Strengthening first-point-of contact strategy for possible COVID-19 cases: The main options for first contact strategy include a centralized hotline, an online platform, and physical locations in specially established temporary centres or primary care facilities. Assistance is needed to build capacity of primary care providers, develop call centers which have clear algorithms and visual aids to triage calls and indicate the appropriate patient pathway. | D31: TBD | E31: TBD | F31: TBD | H31: UNDP Georgia | K31: TA/Expert Consultancy | M31: 3. Currently negotiating with donor/partner | N31: Countrywide | Q31: Salome Odisharia, GRF Project Manager E-mail: salome.odisharia@undp.org Cell: 577798707 Naniko Tsiklauri, PAR Project Manager Cell: +599 545259 E-mail: nana.tsiklauri@undp.org
A32: 23 | H32: WHO | I32: 1700 | J32: USD | K32: Others | L32: Translation and printing of communication materials | M32: 1. Completed | N32: Countrywide | Q32: Silviu Domente domentes@who.int 599475 | R32: Tamar Gabunia; tgabunia@moh.gov.ge; 599071018
A33: 24
A34: 25
A35: 26
A36: 27
A37: 28
A38: 29
A39: 30
A40: 31
A41: 32
A42: 33
A43: 34
A44: 35
A45: 36
A46: 37
A47: 38
A48: 39
A49: 40
A50: 41
A51: 42
A52: 43
A53: 44
A54: 45
A55: 46
A56: 47
A57: 48
A58: 49
A59: 50
A60: 51
A61: 52
A62: 53
A63: 54
A64: 55
A65: 56
A66: 57
A67: 58
A68: 59
A69: 60
A70: 61
A71: 62
A72: 63
A73: 64
A74: 65
A75: 66
A76: 67
A77: 68
A78: 69
A79: 70
A80: 71
A81: 72
A82: 73
A83: 74
A84: 75
A85: 76
A86: 77
A87: 78
A88: 79
A89: 80
A90: 81
A91: 82
A92: 83
A93: 84
A94: 85
A95: 86
A96: 87
A97: 88
A98: 89
A99: 90
A100: 91
A101: 92
A102: 93
A103: 94
A104: 95
A105: 96
A106: 97
A107: 98
A108: 99
A109: 100
A110: 101
A111: 102
A112: 103
A113: 104
A114: 105
A115: 106
A116: 107
A117: 108
A118: 109
A119: 110
A120: 111
A121: 112
A122: 113
A123: 114
A124: 115
A125: 116
A126: 117
A127: 118
A128: 119
A129: 120
A130: 121
A131: 122
A132: 123
A133: 124
A134: 125
A135: 126
A136: 127
A137: 128
A138: 129
A139: 130
A140: 131
A141: 132
A142: 133
A143: 134
A144: 135
A145: 136
A146: 137
A147: 138
A148: 139
A149: 140
A150: 141
A151: 142
A152: 143
A153: 144
A154: 145
A155: 146
A156: 147
A157: 148
A158: 149
A159: 150
A160: 151
A161: 152
A162: 153
A163: 154
A164: 155
A165: 156
A166: 157
A167: 158
A168: 159
A169: 160
A170: 161
A171: 162
A172: 163
A173: 164
A174: 165
A175: 166
A176: 167
A177: 168
A178: 169
A179: 170
A180: 171
A181: 172
A182: 173
A183: 174
A184: 175
A185: 176
A186: 177
A187: 178
A188: 179
A189: 180
A190: 181
A191: 182
A192: 183
A193: 184
A194: 185
A195: 186
A196: 187
A197: 188
A198: 189
A199: 190
A200: 191
A201: 192
A202: 193
A203: 194
... 106 more rows

Sheet Humanitarian Aid
A1: COVID-19 RESPONSE FOR PREPAREDENESS | T1: DATE OF UPDATE:
A3: # | B3: NEEDS | J3: SUPPORT PROVIDED BY DEV PARTNERS | P3: Status | Q3: Georgraphic Coverage | T3: Contact Person (DONORS)
A5: 1 | B5: Initiator | C5: Description | D5: PRODUCTS/REQUIREMENTS | E5: NUMBER | F5: BUDGET PER UNIT | G5: TOTAL BUDGET | H5: Currency | J5: Organization | K5: Budget Provided | L5: Currency | M5: Budget Provided | N5: Assistance Type | O5: Comment | P5: 1. Completed 2. Agreed with the donor/partner - is currently in process 3. Currently negotiating with donor/partner 4. Exploring support opportunities | Q5: (Please, select from the list) Central Level Local Level (Please select the region or municipality) | R5: (Please, select from the list) Regions | S5: (Please, select from the list) Municipalities | T5: DONOR | U5: GOV
A6: 2 | B6: World Vision Georgia | C6: World Vision Georgia is implementing long-term programs in Tbilisi, Samtskhe Javakheti, Kakheti and Imereti regions with the aim to buttress child protection systems, strengthen communities and assist the most vulnerable families. With the spread of COVID-19, each program has a detailed list (with names) of all families where food and hygiene packages should be delivered. | D6: Food and Hygiene Aid | E6: 300 | N6: Humanitarian Aid | P6: 2. Agreed with the donor/partner - is currently in process | Q6: Local Level | R6: Samtskhe - Javakheti Region | S6: Akhaltsikhe Municipality | T6: Development Center Director of Samtskhe-Javakheti, Ms. Nino Lomidze - 595 338 555 | U6: Sozar Subari
A7: 3 | E7: 350 | N7: Humanitarian Aid | P7: 2. Agreed with the donor/partner - is currently in process | Q7: Local Level | R7: Imereti Region | S7: Kutaisi Municipality | T7: Development Center Director of Imereti, Mr. Davit Chkhobadze - 514 559 595 | U7: Sozar Subari
A8: 4 | E8: 309 | N8: Humanitarian Aid | P8: 2. Agreed with the donor/partner - is currently in process | Q8: Local Level | R8: Kakheti Region | S8: Telavi Municipality | T8: Development Center Director of Kakheti, Ms. Nana Atuashvili - 593 170 319 | U8: Sozar Subari
A9: 5 | E9: 637 | N9: Humanitarian Aid | O9: In addition, World Vision Georgia provides support for food and hygiene packages for the following vulnerable children: 1.Street children identified by mobile groups as well as daycare beneficiaries: A total of 150 children will benefit from this program. Contact Person: Maya Mgeliashvili, Tel: 593 380 777 2.Beneficiaries registered under the UNHCR-funded program: Asylum seekers housed in Martkopi Center: 50 beneficiaries and refugees, humanitarian and stateless persons - 25 beneficiaries. Contact Person: Maka Tatuashvili, Tel: 599 731 020 Eka Gurgenidze - 577 052 084 | P9: 2. Agreed with the donor/partner - is currently in process | Q9: Local Level | R9: Tbilisi | S9: Tbilisi Municipality | T9: Tbilisi Regional Development Project Manager, Ms. Natia Mzhavanadze - 595 322 771 | U9: Sozar Subari
A10: 6 | B10: Administration of the Government | C10: Food and medical aid in Regions | D10: Food and medical aid support needed to Tetri Tskaro region, Village Kosalari | E10: 200 | F10: 40 | G10: 8000 | H10: USD | N10: Humanitarian Aid | O10: THIS IS URGENT | P10: 4. Exploring support opportunities | Q10: Local Level | R10: Kvemo Kartli Region | S10: Tetritskaro Municipality | U10: Lela Akiashvili; lakiashvili@gov.ge; 599914323
A11: 7 | C11: Food and medical aid in Tbilisi | D11: Food and medical supplies needed to a single mother of four (598 12 69 29) | E11: 3 | F11: 40 | G11: 120 | H11: USD | N11: Humanitarian Aid | P11: 4. Exploring support opportunities | Q11: Central Level | R11: Tbilisi | S11: Tbilisi Municipality | T11: 598 12 69 20 (თავად ბენეფიციარის საკონტაქტო ნომერი) | U11: Lela Akiashvili; lakiashvili@gov.ge; 599914323
A12: 8 | D12: Food and rent-support is needed to a single mother of one 558375151 (ჟანა ვახტანგიშვილი) | E12: 1 | F12: 40 | G12: 40 | H12: USD | N12: Humanitarian Aid
B13: Georgia Red Cross Society | C13: Georgia Red Cross Society ensures permanent linkage with the relevant authorities at both local and central levels to contribute to solving COVID-19 problems in the country. | D13: Providing permanent information campaign to the population about the ways and safety measures for the spread of coronavirus (COVID-19), as well as the importance of self-isolation, social stigma, coping with stress with Georgian, Azerbaijani, Armenian and Abkhazian language flyers and videos distribution, social media, various TV inclusions. | E13: More than 1,200,000 people received direct information through the information campaign. | N13: Others
A14: 10 | D14: Ensuring continue of mobilizing, retraining and management of Spontaneous volunteers. Currently, volunteer training continues with the use of a specially designed online platform (https://help.redcross.ge/), which provides information on: Coronavirus overview, ways to transfer, personal safety standards, rules for using personal safety equipment, social stigma, self-isolation principles and stress management. It should be noted that properly trained and equipped volunteers were fully involved in the process of thermo-screening at various border checkpoints. | E14: Up to 200 people daily, including registered on hotline at Tbilisi City Hall | N14: Others
A15: 11 | D15: Implementing of regular monitoring of the body temperature of persons living in quarantine in Batumi and the data collected is transmitted to the Batumi branch of the National Agency for Disease Control and Public Health for supervision. | E15: On average 500 patients per day | N15: Others | R15: Autonomous Republic of Adjara | S15: Batumi Municipality
A16: 12 | D16: Relevant services are provided by trained volunteers to people in need of psychological assistance, including those in self-isolation, to deal with panic and stress, and to reduce stigma. | E16: Hotline service is activated (0 800 000 018). | N16: Others
A17: 13 | D17: Food and hygiene items are being collected and handed over to those living in isolation and quarantine, as well as to the elderly and those with disabilities who are over 70 years old alone and with chronic illnesses | E17: Up to 10,000 people in Tbilisi and more than 15,000 people in 35-various municipalities of Georgia | N17: Others
A18: 14 | D18: Implementing home care for the vulnerable and chronically ill, as well as for people in social needs. | E18: Home volunteer service is provided at the base of 20 Red Cross Society's branches in Georgia. | N18: Others
A19: 15 | D19: Queues are arranged by volunteers in banks as well as in various commercial establishments to ensure social distance. | E19: Up to 1100 units | N19: Others
A20: 16 | D20: Information sessions are held periodically for media representatives to discuss risk communication and security rules for journalists | N20: Others
A21: 17 | D21: Information meetings are held regularly with international humanitarian organizations such as UN agencies (UNHCR, UNICEF), as well as Care International, Save the Children; Action Against Hunger to coordinateand in order to avoid duplication in response activities. The meetings are also attended by representatives of the Ministry of Internally Displaced Persons from the Occupied Territories, Ministry of Labor, Health and Social Affairs of Georgia and the International Health Organization, who inform participants about the current situation and joint response measures. | N21: Others
A22: 18 | D22: Active negotiations are underway with such as the Korean and Chinese Red Cross national societies, on the need to provide Georgia with rapid coronavirus tests for mass testing of Georgian populations in case of need. | N22: Others
A23: 19
A24: 20
A25: 21
A26: 22
A27: 23
A28: 24
A29: 25
A30: 26
A31: 27
A32: 28
A33: 29
A34: 30
A35: 31
A36: 32
A37: 33
A38: 34
A39: 35
A40: 36
A41: 37
A42: 38
A43: 39
A44: 40
A45: 41
A46: 42
A47: 43
A48: 44
A49: 45
A50: 46
A51: 47
A52: 48
A53: 49
A54: 50
A55: 51
A56: 52
A57: 53
A58: 54
A59: 55
A60: 56
A61: 57
A62: 58
A63: 59
A64: 60
A65: 61
A66: 62
A67: 63
A68: 64
A69: 65
A70: 66
A71: 67
A72: 68
A73: 69
A74: 70
A75: 71
A76: 72
A77: 73
A78: 74
A79: 75
A80: 76
A81: 77
A82: 78
A83: 79
A84: 80
A85: 81
A86: 82
A87: 83
A88: 84
A89: 85
A90: 86
A91: 87
A92: 88
A93: 89
A94: 90
A95: 91
A96: 92
A97: 93
A98: 94
A99: 95
A100: 96
A101: 97
A102: 98
A103: 99
A104: 100
A105: 101
A106: 102
A107: 103
A108: 104
A109: 105
A110: 106
A111: 107
A112: 108
A113: 109
A114: 110
A115: 111
A116: 112
A117: 113
A118: 114
A119: 115
A120: 116
A121: 117
A122: 118
A123: 119
A124: 120
A125: 121
A126: 122
A127: 123
A128: 124
A129: 125
A130: 126
A131: 127
A132: 128
A133: 129
A134: 130
A135: 131
A136: 132
A137: 133
A138: 134
A139: 135
A140: 136
A141: 137
A142: 138
A143: 139
A144: 140
A145: 141
A146: 142
A147: 143
A148: 144
A149: 145
A150: 146
A151: 147
A152: 148
A153: 149
A154: 150
A155: 151
A156: 152
A157: 153
A158: 154
A159: 155
A160: 156
A161: 157
A162: 158
A163: 159
A164: 160
A165: 161
A166: 162
A167: 163
A168: 164
A169: 165
A170: 166
A171: 167
A172: 168
A173: 169
A174: 170
A175: 171
A176: 172
A177: 173
A178: 174
A179: 175
A180: 176
A181: 177
A182: 178
A183: 179
A184: 180
A185: 181
A186: 182
A187: 183
A188: 184
A189: 185
A190: 186
A191: 187
A192: 188
A193: 189
A194: 190
A195: 191
A196: 192
A197: 193
A198: 194
A199: 195
A200: 196
A201: 197
A202: 198
... 83 more rows

Sheet Ministry of Defence
A1: COVID-19 RESPONSE FOR PREPAREDENESS | T1: DATE OF UPDATE:
A3: # | B3: NEEDS | K3: SUPPORT PROVIDED BY DEV PARTNERS | P3: Status | Q3: Georgraphic Coverage | T3: Contact Person (DONORS)
A5: 1 | B5: Initiator | C5: Description | D5: Purpose | E5: PRODUCTS/REQUIREMENTS (Purpose) | F5: NUMBER | G5: BUDGET PER SUBJECT | H5: BUDGET | I5: Currency | K5: Organization | L5: Budget Provided | M5: Currency | N5: Assistance Type | O5: Comment | P5: 1. Completed 2. Agreed with the donor/partner - is currently in process 3. Currently negotiating with donor/partner 4. Exploring support opportunities | Q5: (Please, select from the list) Central Level Local Level (Please select the region or municipality) | R5: (Please, select from the list) Regions | S5: (Please, select from the list) Municipalities | T5: DONOR | U5: GOV
A6: 2 | B6: Ministry of Defence | C6: Calculation of the Tangible Assets for the 100 Checkpoints of the Defence Forces | D6: Accomodation and Hygiene | E6: Camp (20 person) Accomodation | F6: 100 | N6: Material Assistance | P6: 4. Exploring support opportunities
A7: 3 | E7: Camp (20/10 person) Field DFAC/Dining Facility | F7: 100 | N7: Material Assistance | P7: 4. Exploring support opportunities
A8: 4 | E8: Camp (20 person) Medical | F8: 100 | N8: Material Assistance | P8: 4. Exploring support opportunities
A9: 5 | E9: Bed Field | F9: 2500 | N9: Material Assistance | P9: 4. Exploring support opportunities
A10: 6 | E10: Face Basin/Sink with 10 sections | F10: 100 | N10: Material Assistance | P10: 4. Exploring support opportunities
A11: 7 | E11: Bio-Toilet for men - 2; for women -1 | F11: 300 | N11: Material Assistance | P11: 4. Exploring support opportunities
A12: 8 | E12: Generator >5.5 KW | F12: 100 | N12: Material Assistance | P12: 4. Exploring support opportunities
A13: 9 | E13: Heater 2 units in one camp | F13: 600 | N13: Material Assistance | P13: 4. Exploring support opportunities
A14: 10 | E14: Fire Extinguisher (8kg) for camps | F14: 300 | N14: Material Assistance | P14: 4. Exploring support opportunities
A15: 11 | E15: Refrigerator with glass door | F15: 100 | N15: Material Assistance | P15: 4. Exploring support opportunities
A16: 12 | E16: Electric Kettle 220V | F16: 100 | N16: Material Assistance | P16: 4. Exploring support opportunities
A17: 13 | E17: Thermometer Mercury | F17: 200 | N17: Material Assistance | P17: 4. Exploring support opportunities
A18: 14 | E18: Disinfectent Dispenser Disinfection | F18: 500 | N18: Material Assistance | P18: 4. Exploring support opportunities
A19: 15 | E19: Electronic Thermometer for control | F19: 200 | N19: Material Assistance | P19: 4. Exploring support opportunities
A20: 16 | E20: Laser/Infrared Thermometer for control | F20: 200 | N20: Material Assistance | P20: 4. Exploring support opportunities
A21: 21 | D21: For Road Blocking | E21: Barrier Plastic/Blocks | F21: 1200 | N21: Material Assistance | P21: 4. Exploring support opportunities
A22: 22 | E22: Pointer Prohibitory | F22: 200 | N22: Material Assistance | P22: 4. Exploring support opportunities
A23: 23 | E23: Pointer Prohibitory, Hand-held | F23: 200 | N23: Material Assistance | P23: 4. Exploring support opportunities
A24: 24 | E24: Projector >150V | F24: 400 | N24: Material Assistance | P24: 4. Exploring support opportunities
A25: 25 | E25: Loud-Hailer/Megaphone Voicing | F25: 100 | N25: Material Assistance | P25: 4. Exploring support opportunities
A26: 26 | E26: Barbed-wire 20 m roll | F26: 100 | N26: Material Assistance | P26: 4. Exploring support opportunities
A27: 28 | D27: Rapidly Consuming Items (Daily Expenditure) | E27: Mask Medical | F27: 7500 | N27: Material Assistance | P27: 4. Exploring support opportunities
A28: 29 | E28: Gloves Disposable | F28: 7500 | N28: Material Assistance | P28: 4. Exploring support opportunities
A29: 30 | E29: Man portable thermal fogging machine man-portable, has to dispense both - water and oil-based chemicals | F29: 40 | N29: Material Assistance | P29: 4. Exploring support opportunities
A30: 31
A31: 32
A32: 33
A33: 34
A34: 35
A35: 36
A36: 37
A37: 38
A38: 39
A39: 40
A40: 41
A41: 42
A42: 43
A43: 44
A44: 45
A45: 46
A46: 47
A47: 48
A48: 49
A49: 50
A50: 51
A51: 52
A52: 53
A53: 54
A54: 55
A55: 56
A56: 57
A57: 58
A58: 59
A59: 60
A60: 61
A61: 62
A62: 63
A63: 64
A64: 65
A65: 66
A66: 67
A67: 68
A68: 69
A69: 70
A70: 71
A71: 72
A72: 73
A73: 74
A74: 75
A75: 76
A76: 77
A77: 78
A78: 79
A79: 80
A80: 81
A81: 82
A82: 83
A83: 84
A84: 85
A85: 86
A86: 87
A87: 88
A88: 89
A89: 90
A90: 91
A91: 92
A92: 93
A93: 94
A94: 95
A95: 96
A96: 97
A97: 98
A98: 99
A99: 100
A100: 101
A101: 102
A102: 103
A103: 104
A104: 105
A105: 106
A106: 107
A107: 108
A108: 109
A109: 110
A110: 111
A111: 112
A112: 113
A113: 114
A114: 115
A115: 116
A116: 117
A117: 118
A118: 119
A119: 120
A120: 121
A121: 122
A122: 123
A123: 124
A124: 125
A125: 126
A126: 127
A127: 128
A128: 129
A129: 130
A130: 131
A131: 132
A132: 133
A133: 134
A134: 135
A135: 136
A136: 137
A137: 138
A138: 139
A139: 140
A140: 141
A141: 142
A142: 143
A143: 144
A144: 145
A145: 146
A146: 147
A147: 148
A148: 149
A149: 150
A150: 151
A151: 152
A152: 153
A153: 154
A154: 155
A155: 156
A156: 157
A157: 158
A158: 159
A159: 160
A160: 161
A161: 162
A162: 163
A163: 164
A164: 165
A165: 166
A166: 167
A167: 168
A168: 169
A169: 170
A170: 171
A171: 172
A172: 173
A173: 174
A174: 175
A175: 176
A176: 177
A177: 178
A178: 179
A179: 180
A180: 181
A181: 182
A182: 183
A183: 184
A184: 185
A185: 186
A186: 187
A187: 188
A188: 189
A189: 190
A190: 191
A191: 192
A192: 193
A193: 194
A194: 195
A195: 196
A196: 197
A197: 198
A198: 199
A199: 200
A200: 201
A201: 202
A202: 203
... 97 more rows

Sheet MRDI
A1: COVID-19 RESPONSE FOR PREPAREDENESS | S1: DATE OF UPDATE:
A3: # | B3: NEEDS | J3: SUPPORT PROVIDED BY DEV PARTNERS | O3: Status | P3: Georgraphic Coverage | S3: Contact Person (DONORS)
A5: 1 | B5: Initiator | C5: Description/Purpose | D5: PRODUCTS/REQUIREMENTS | E5: NUMBER | F5: BUDGET PER SUBJECT | G5: BUDGET | H5: Currency | J5: Organization | K5: Budget Provided | L5: Currency | M5: Assistance Type | N5: Comment | O5: 1. Completed 2. Agreed with the donor/partner - is currently in process 3. Currently negotiating with donor/partner 4. Exploring support opportunities | P5: (Please, select from the list) Central Level Local Level (Please select the region or municipality) | Q5: (Please, select from the list) Regions | R5: (Please, select from the list) Municipalities | S5: DONOR | T5: GOV
A6: 2 | B6: Ministry of Regional Development and Infrastructure of Georgia | C6: UWSCG provides the population with water and wastewater servises across the country. For the proper functioning of the company it is of utmost important to have the following materials to prevent the spread of Covid-19. | D6: Disinfiction liquid for hand | E6: 300 | J6: SDC/ADC/UNDP | M6: Material Assistance | O6: 3. Currently negotiating with donor/partner | P6: Countrywide | T6: Ann Onashvili 599692090 (UWSCG)
A7: 3 | D7: Disinfiction liquid for furniture | E7: 250 | J7: SDC/ADC/UNDP | M7: Material Assistance | O7: 3. Currently negotiating with donor/partner | P7: Countrywide | T7: Ann Onashvili 599692090 (UWSCG)
A8: 4 | D8: Disinfiction liquid for floor | E8: 120 | J8: SDC/ADC/UNDP | M8: Material Assistance | O8: 3. Currently negotiating with donor/partner | P8: Countrywide | T8: Ann Onashvili 599692090 (UWSCG)
A9: 5 | D9: Overal suit (antibacterial) | E9: 150 | J9: SDC/ADC/UNDP | M9: Material Assistance | O9: 3. Currently negotiating with donor/partner | P9: Countrywide | T9: Ann Onashvili 599692090 (UWSCG)
A10: 6 | D10: Protective glasses | E10: 1000 | J10: SDC/ADC/UNDP | M10: Material Assistance | O10: 3. Currently negotiating with donor/partner | P10: Countrywide | T10: Ann Onashvili 599692090 (UWSCG)
A11: 7 | D11: Face masks | E11: 30000 | J11: SDC/ADC/UNDP | M11: Material Assistance | O11: 3. Currently negotiating with donor/partner | P11: Countrywide | T11: Ann Onashvili 599692090 (UWSCG)
A12: 8
A13: 9
A14: 10
A15: 11
A16: 12
A17: 13 | C17: The MRDI is awaiting the economic recovery plan, which is under preparation already. As per our communication, the document will cover regional and municipal needs, priorities both at central and local levels. MRDI stands ready to adjust its donor funded activities accordingly.
A18: 14
A19: 15
A20: 16
A21: 17
A22: 18
A23: 19
A24: 20
A25: 21
A26: 22
A27: 23
A28: 24
A29: 25
A30: 26
A31: 27
A32: 28
A33: 29
A34: 30
A35: 31
A36: 32
A37: 33
A38: 34
A39: 35
A40: 36
A41: 37
A42: 38
A43: 39
A44: 40
A45: 41
A46: 42
A47: 43
A48: 44
A49: 45
A50: 46
A51: 47
A52: 48
A53: 49
A54: 50
A55: 51
A56: 52
A57: 53
A58: 54
A59: 55
A60: 56
A61: 57
A62: 58
A63: 59
A64: 60
A65: 61
A66: 62
A67: 63
A68: 64
A69: 65
A70: 66
A71: 67
A72: 68
A73: 69
A74: 70
A75: 71
A76: 72
A77: 73
A78: 74
A79: 75
A80: 76
A81: 77
A82: 78
A83: 79
A84: 80
A85: 81
A86: 82
A87: 83
A88: 84
A89: 85
A90: 86
A91: 87
A92: 88
A93: 89
A94: 90
A95: 91
A96: 92
A97: 93
A98: 94
A99: 95
A100: 96
A101: 97
A102: 98
A103: 99
A104: 100
A105: 101
A106: 102
A107: 103
A108: 104
A109: 105
A110: 106
A111: 107
A112: 108
A113: 109
A114: 110
A115: 111
A116: 112
A117: 113
A118: 114
A119: 115
A120: 116
A121: 117
A122: 118
A123: 119
A124: 120
A125: 121
A126: 122
A127: 123
A128: 124
A129: 125
A130: 126
A131: 127
A132: 128
A133: 129
A134: 130
A135: 131
A136: 132
A137: 133
A138: 134
A139: 135
A140: 136
A141: 137
A142: 138
A143: 139
A144: 140
A145: 141
A146: 142
A147: 143
A148: 144
A149: 145
A150: 146
A151: 147
A152: 148
A153: 149
A154: 150
A155: 151
A156: 152
A157: 153
A158: 154
A159: 155
A160: 156
A161: 157
A162: 158
A163: 159
A164: 160
A165: 161
A166: 162
A167: 163
A168: 164
A169: 165
A170: 166
A171: 167
A172: 168
A173: 169
A174: 170
A175: 171
A176: 172
A177: 173
A178: 174
A179: 175
A180: 176
A181: 177
A182: 178
A183: 179
A184: 180
A185: 181
A186: 182
A187: 183
A188: 184
A189: 185
A190: 186
A191: 187
A192: 188
A193: 189
A194: 190
A195: 191
A196: 192
A197: 193
A198: 194
A199: 195
A200: 196
A201: 197
A202: 198
... 102 more rows

Sheet MOESD
A1: COVID-19 RESPONSE FOR PREPAREDENESS | S1: DATE OF UPDATE:
A3: # | B3: NEEDS | J3: SUPPORT PROVIDED BY DEV PARTNERS | O3: Status | P3: Georgraphic Coverage | S3: Contact Person (DONORS)
A5: 1 | B5: Initiator | C5: Description/Purpose | D5: PRODUCTS/REQUIREMENTS | E5: NUMBER | F5: BUDGET PER SUBJECT | G5: BUDGET | H5: Currency | J5: Organization | K5: Budget Provided | L5: Currency | M5: Assistance Type | N5: Comment | O5: 1. Completed 2. Agreed with the donor/partner - is currently in process 3. Currently negotiating with donor/partner 4. Exploring support opportunities | P5: (Please, select from the list) Central Level Local Level (Please select the region or municipality) | Q5: (Please, select from the list) Regions | R5: (Please, select from the list) Municipalities | S5: DONOR | T5: GOV
A6: 2 | B6: Ministry of Economy and Sustainable Development of Georgia
A7: 3
A8: 4
A9: 5
A10: 6
A11: 7
A12: 8
A13: 9
A14: 10
A15: 11
A16: 12
A17: 13
A18: 14
A19: 15
A20: 16
A21: 17
A22: 18
A23: 19
A24: 20
A25: 21
A26: 22
A27: 23
A28: 24
A29: 25
A30: 26
A31: 27
A32: 28
A33: 29
A34: 30
A35: 31
A36: 32
A37: 33
A38: 34
A39: 35
A40: 36
A41: 37
A42: 38
A43: 39
A44: 40
A45: 41
A46: 42
A47: 43
A48: 44
A49: 45
A50: 46
A51: 47
A52: 48
A53: 49
A54: 50
A55: 51
A56: 52
A57: 53
A58: 54
A59: 55
A60: 56
A61: 57
A62: 58
A63: 59
A64: 60
A65: 61
A66: 62
A67: 63
A68: 64
A69: 65
A70: 66
A71: 67
A72: 68
A73: 69
A74: 70
A75: 71
A76: 72
A77: 73
A78: 74
A79: 75
A80: 76
A81: 77
A82: 78
A83: 79
A84: 80
A85: 81
A86: 82
A87: 83
A88: 84
A89: 85
A90: 86
A91: 87
A92: 88
A93: 89
A94: 90
A95: 91
A96: 92
A97: 93
A98: 94
A99: 95
A100: 96
A101: 97
A102: 98
A103: 99
A104: 100
A105: 101
A106: 102
A107: 103
A108: 104
A109: 105
A110: 106
A111: 107
A112: 108
A113: 109
A114: 110
A115: 111
A116: 112
A117: 113
A118: 114
A119: 115
A120: 116
A121: 117
A122: 118
A123: 119
A124: 120
A125: 121
A126: 122
A127: 123
A128: 124
A129: 125
A130: 126
A131: 127
A132: 128
A133: 129
A134: 130
A135: 131
A136: 132
A137: 133
A138: 134
A139: 135
A140: 136
A141: 137
A142: 138
A143: 139
A144: 140
A145: 141
A146: 142
A147: 143
A148: 144
A149: 145
A150: 146
A151: 147
A152: 148
A153: 149
A154: 150
A155: 151
A156: 152
A157: 153
A158: 154
A159: 155
A160: 156
A161: 157
A162: 158
A163: 159
A164: 160
A165: 161
A166: 162
A167: 163
A168: 164
A169: 165
A170: 166
A171: 167
A172: 168
A173: 169
A174: 170
A175: 171
A176: 172
A177: 173
A178: 174
A179: 175
A180: 176
A181: 177
A182: 178
A183: 179
A184: 180
A185: 181
A186: 182
A187: 183
A188: 184
A189: 185
A190: 186
A191: 187
A192: 188
A193: 189
A194: 190
A195: 191
A196: 192
A197: 193
A198: 194
A199: 195
A200: 196
A201: 197
A202: 198
... 102 more rows

Sheet Ministry of Internal Affairs
A1: COVID-19 RESPONSE FOR PREPAREDENESS | S1: DATE OF UPDATE:
A3: # | B3: NEEDS | J3: SUPPORT PROVIDED BY DEV PARTNERS | O3: Status | P3: Georgraphic Coverage | S3: Contact Person (DONORS)
A5: 1 | B5: Initiator | C5: Description/Purpose | D5: PRODUCTS/REQUIREMENTS | E5: NUMBER | F5: BUDGET PER SUBJECT | G5: BUDGET | H5: Currency | J5: Organization | K5: Budget Provided | L5: Currency | M5: Assistance Type | N5: Comment | O5: 1. Completed 2. Agreed with the donor/partner - is currently in process 3. Currently negotiating with donor/partner 4. Exploring support opportunities | P5: (Please, select from the list) Central Level Local Level (Please select the region or municipality) | Q5: (Please, select from the list) Regions | R5: (Please, select from the list) Municipalities | S5: DONOR | T5: GOV
A6: 2 | B6: Ministry of Internal Affairs of Georgia | C6: The Emergency Management Service, Border Police and Security Police of the MIA are parts of the special inter-agency emergency coordination team that was asked to carry out preventive activities to reduce the risk of spreading novel coronavirus disease and infections. | D6: Disposable white Tyverk coverall suit with protective gloves, attached hood and boots | E6: 10 500 | M6: Material Assistance | O6: 4. Exploring support opportunities
A7: 3 | D7: Respirator N95 | E7: 16 000 | M7: Material Assistance | O7: 4. Exploring support opportunities
A8: 4 | D8: Safety masks | E8: 90 000 | M8: Material Assistance | O8: 4. Exploring support opportunities
A9: 5 | D9: Decontamination shower tent with three exits / lines | E9: 2 | M9: Material Assistance | O9: 4. Exploring support opportunities
A10: 6 | D10: Outdoor waterproof mat – 5X5 | E10: 2 | M10: Material Assistance | O10: 4. Exploring support opportunities
A11: 7 | D11: Safety poles – Height 1.2 meters (for decontamination shower tent) | E11: 10 | M11: Material Assistance | O11: 4. Exploring support opportunities
A12: 8 | D12: Biohazard disinfection spray for personal decontamination | E12: 500 | M12: Material Assistance | O12: 4. Exploring support opportunities
A13: 9 | D13: Tent for a total area of 40-50 m² (with heating system) | E13: 10 | M13: Material Assistance | O13: 4. Exploring support opportunities
A14: 10 | D14: Tent for a total area of 20 m² (with heating system) | E14: 10 | M14: Material Assistance | O14: 4. Exploring support opportunities
A15: 11 | D15: IR THERMOMETER | E15: 190 | M15: Material Assistance | O15: 4. Exploring support opportunities
A16: 12 | D16: Protective gloves | E16: 3000 | M16: Material Assistance | O16: 4. Exploring support opportunities
A17: 13 | D17: Googles/Face shield | E17: 1000 | M17: Material Assistance | O17: 4. Exploring support opportunities
A18: 14 | D18: Personal protective gowns & head cap | E18: 5000 | M18: Material Assistance | O18: 4. Exploring support opportunities
A19: 15 | D19: Disinfection spray | E19: 200 litre | M19: Material Assistance
A20: 16
A21: 17
A22: 18
A23: 19
A24: 20
A25: 21
A26: 22
A27: 23
A28: 24
A29: 25
A30: 26
A31: 27
A32: 28
A33: 29
A34: 30
A35: 31
A36: 32
A37: 33
A38: 34
A39: 35
A40: 36
A41: 37
A42: 38
A43: 39
A44: 40
A45: 41
A46: 42
A47: 43
A48: 44
A49: 45
A50: 46
A51: 47
A52: 48
A53: 49
A54: 50
A55: 51
A56: 52
A57: 53
A58: 54
A59: 55
A60: 56
A61: 57
A62: 58
A63: 59
A64: 60
A65: 61
A66: 62
A67: 63
A68: 64
A69: 65
A70: 66
A71: 67
A72: 68
A73: 69
A74: 70
A75: 71
A76: 72
A77: 73
A78: 74
A79: 75
A80: 76
A81: 77
A82: 78
A83: 79
A84: 80
A85: 81
A86: 82
A87: 83
A88: 84
A89: 85
A90: 86
A91: 87
A92: 88
A93: 89
A94: 90
A95: 91
A96: 92
A97: 93
A98: 94
A99: 95
A100: 96
A101: 97
A102: 98
A103: 99
A104: 100
A105: 101
A106: 102
A107: 103
A108: 104
A109: 105
A110: 106
A111: 107
A112: 108
A113: 109
A114: 110
A115: 111
A116: 112
A117: 113
A118: 114
A119: 115
A120: 116
A121: 117
A122: 118
A123: 119
A124: 120
A125: 121
A126: 122
A127: 123
A128: 124
A129: 125
A130: 126
A131: 127
A132: 128
A133: 129
A134: 130
A135: 131
A136: 132
A137: 133
A138: 134
A139: 135
A140: 136
A141: 137
A142: 138
A143: 139
A144: 140
A145: 141
A146: 142
A147: 143
A148: 144
A149: 145
A150: 146
A151: 147
A152: 148
A153: 149
A154: 150
A155: 151
A156: 152
A157: 153
A158: 154
A159: 155
A160: 156
A161: 157
A162: 158
A163: 159
A164: 160
A165: 161
A166: 162
A167: 163
A168: 164
A169: 165
A170: 166
A171: 167
A172: 168
A173: 169
A174: 170
A175: 171
A176: 172
A177: 173
A178: 174
A179: 175
A180: 176
A181: 177
A182: 178
A183: 179
A184: 180
A185: 181
A186: 182
A187: 183
A188: 184
A189: 185
A190: 186
A191: 187
A192: 188
A193: 189
A194: 190
A195: 191
A196: 192
A197: 193
A198: 194
A199: 195
A200: 196
A201: 197
A202: 198
... 102 more rows

Sheet State Minister's Office
Q1: DATE OF UPDATE:
A3: # | B3: NEEDS | H3: SUPPORT PROVIDED BY DEV PARTNERS | M3: Status | N3: Georgraphic Coverage | Q3: Contact Person (DONORS)
A5: 1 | B5: Initiator | C5: Description/Purpose | D5: PRODUCTS/REQUIREMENTS | E5: NUMBER | F5: BUDGET PER SUBJECT | G5: BUDGET | H5: Organization | I5: Budget Provided | J5: Currency | K5: Assistance Type | L5: Comment | M5: 1. Completed 2. Agreed with the donor/partner - is currently in process 3. Currently negotiating with donor/partner 4. Exploring support opportunities | N5: (Please, select from the list) Central Level Local Level (Please select the region or municipality) | O5: (Please, select from the list) Regions | P5: (Please, select from the list) Municipalities | Q5: DONOR | R5: GOV
A6: 2 | B6: Office of the State Minister of Georgia for Reconciliation and Civil Equality | C6: Safety kits (one-piece suit, goggles, mask) – 500 Sanitizer (500 ml) – 800 Liquid soap (1,0 lit) – 100 Liquid soap (5,0 lit) - 100 | I6: 45700 | J6: GEL | K6: Material Assistance | L6: Purchased by USAID and delivered by UNDP | M6: 1. Completed | N6: Local Level | O6: Abkhazia Region | Q6: Louisa Vinton; louisa.vinton@undp.org
A7: 3 | C7: Sanitizer (5,0 lit) - 12 | I7: 192 | J7: GEL | K7: Material Assistance | L7: Purchased by UN Women and delivered by UNDP | M7: 1. Completed | N7: Local Level | O7: Abkhazia Region | Q7: Louisa Vinton; louisa.vinton@undp.org
A8: 4 | C8: Liquid soap (5,0 lit) - 1 | I8: 19.8 | J8: GEL | K8: Material Assistance | L8: Purchased by World Vision and delivered by UNDP | M8: 1. Completed | N8: Local Level | O8: Abkhazia Region | Q8: Louisa Vinton; louisa.vinton@undp.org
A9: 5 | C9: Sanitizer (500 ml) - 70 | I9: 945 | J9: GEL | K9: Material Assistance | L9: Purchased by FAO and delivered by UNDP | M9: 1. Completed | N9: Local Level | O9: Abkhazia Region | Q9: Louisa Vinton; louisa.vinton@undp.org
A10: 6 | C10: Sanitizer (600 ml) – 1300 Sanitizer (5,0 lit) – 200 Surgical masks – 13,00 | I10: 54662 | J10: GEL | K10: Material Assistance | L10: Purchased and delivered by UNDP | M10: 1. Completed | N10: Local Level | O10: Abkhazia Region | Q10: Louisa Vinton; louisa.vinton@undp.org
A11: 7 | C11: Printing flyers and posters (on COVID-19 prevention recommendations): flyers in Armenian language- 72 000, in Azerbaijani language -64 000; Posters in Armenian language - 2 800, in Azerbaijani language - 2 800 | I11: 16 544 | J11: GEL | L11: Printed by USAID/UNAG PITA Program | M11: 1. Completed | N11: Local Level | O11: Kvemo Kartli Region | P11: Marneuli Municipality | Q11: Lasha Jugeli; lasha@una.ge
A12: 8 | C12: Printing flyers (on COVID-19 quarantine measures): flyers in Armenian language- 80 000, in Azerbaijani language - 90 000 | I12: 13600 | J12: GEL | L12: Printed by USAID/UNAG PITA Program | M12: 1. Completed | N12: Local Level | O12: Kvemo Kartli Region | P12: Marneuli Municipality | Q12: Lasha Jugeli; lasha@una.ge
A13: 9
A14: 10
A15: 11
A16: 12
A17: 13
A18: 14
A19: 15
A20: 16
A21: 17
A22: 18
A23: 19
A24: 20
A25: 21
A26: 22
A27: 23
A28: 24
A29: 25
A30: 26
A31: 27
A32: 28
A33: 29
A34: 30
A35: 31
A36: 32
A37: 33
A38: 34
A39: 35
A40: 36
A41: 37
A42: 38
A43: 39
A44: 40
A45: 41
A46: 42
A47: 43
A48: 44
A49: 45
A50: 46
A51: 47
A52: 48
A53: 49
A54: 50
A55: 51
A56: 52
A57: 53
A58: 54
A59: 55
A60: 56
A61: 57
A62: 58
A63: 59
A64: 60
A65: 61
A66: 62
A67: 63
A68: 64
A69: 65
A70: 66
A71: 67
A72: 68
A73: 69
A74: 70
A75: 71
A76: 72
A77: 73
A78: 74
A79: 75
A80: 76
A81: 77
A82: 78
A83: 79
A84: 80
A85: 81
A86: 82
A87: 83
A88: 84
A89: 85
A90: 86
A91: 87
A92: 88
A93: 89
A94: 90
A95: 91
A96: 92
A97: 93
A98: 94
A99: 95
A100: 96
A101: 97
A102: 98
A103: 99
A104: 100
A105: 101
A106: 102
A107: 103
A108: 104
A109: 105
A110: 106
A111: 107
A112: 108
A113: 109
A114: 110
A115: 111
A116: 112
A117: 113
A118: 114
A119: 115
A120: 116
A121: 117
A122: 118
A123: 119
A124: 120
A125: 121
A126: 122
A127: 123
A128: 124
A129: 125
A130: 126
A131: 127
A132: 128
A133: 129
A134: 130
A135: 131
A136: 132
A137: 133
A138: 134
A139: 135
A140: 136
A141: 137
A142: 138
A143: 139
A144: 140
A145: 141
A146: 142
A147: 143
A148: 144
A149: 145
A150: 146
A151: 147
A152: 148
A153: 149
A154: 150
A155: 151
A156: 152
A157: 153
A158: 154
A159: 155
A160: 156
A161: 157
A162: 158
A163: 159
A164: 160
A165: 161
A166: 162
A167: 163
A168: 164
A169: 165
A170: 166
A171: 167
A172: 168
A173: 169
A174: 170
A175: 171
A176: 172
A177: 173
A178: 174
A179: 175
A180: 176
A181: 177
A182: 178
A183: 179
A184: 180
A185: 181
A186: 182
A187: 183
A188: 184
A189: 185
A190: 186
A191: 187
A192: 188
A193: 189
A194: 190
A195: 191
A196: 192
A197: 193
A198: 194
A199: 195
A200: 196
A201: 197
A202: 198
... 102 more rows

Sheet Ministry of Justice
S1: DATE OF UPDATE:
A3: # | B3: NEEDS | J3: SUPPORT PROVIDED BY DEV PARTNERS | O3: Status | P3: Georgraphic Coverage | S3: Contact Person (DONORS)
A5: 1 | B5: Initiator | C5: Description/Purpose | D5: PRODUCTS/REQUIREMENTS | E5: NUMBER | F5: BUDGET PER SUBJECT | G5: BUDGET | H5: Currency | J5: Organization | K5: Budget Provided | L5: Currency | M5: Assistance Type | N5: Comment | O5: 1. Completed 2. Agreed with the donor/partner - is currently in process 3. Currently negotiating with donor/partner 4. Exploring support opportunities | P5: (Please, select from the list) Central Level Local Level (Please select the region or municipality) | Q5: (Please, select from the list) Regions | R5: (Please, select from the list) Municipalities | S5: DONOR | T5: GOV
A6: 2 | B6: Ministry of Justice | C6: Aid provided for the Penitentiary system | D6: Nitrile gloves | E6: 3000 | J6: ICRC | M6: Material Assistance | O6: 1. Completed | T6: Ketevan Sarajishvili ksarajishvili@justice.gov.ge
A7: 3 | D7: Sanitizer solution for surface | E7: 11 L + 60 L | J7: ICRC | M7: Material Assistance | O7: 1. Completed | T7: Ketevan Sarajishvili ksarajishvili@justice.gov.ge
A8: 4 | D8: Hand sanitizer solution | E8: 5 L | J8: ICRC | M8: Material Assistance | O8: 1. Completed | T8: Ketevan Sarajishvili ksarajishvili@justice.gov.ge
A9: 5 | D9: Non-contact thermometer | E9: 30 | J9: ICRC | M9: Material Assistance | O9: 2. Agreed with the donor/partner - is currently in process | T9: Ketevan Sarajishvili ksarajishvili@justice.gov.ge
A10: 6 | D10: Hazmat suits | E10: 5 | J10: ICRC | M10: Material Assistance | O10: 2. Agreed with the donor/partner - is currently in process | T10: Ketevan Sarajishvili ksarajishvili@justice.gov.ge
A11: 8 | D11: Additional phone call minutes for inmates | J11: ICRC | M11: Financial Assistance - not specified | N11: exact amount and type of financial assistance will be identified in several days | O11: 3. Currently negotiating with donor/partner | T11: Ketevan Sarajishvili ksarajishvili@justice.gov.ge
A12: 9 | D12: Veil | E12: 15000 | J12: CoE | M12: Material Assistance | O12: 3. Currently negotiating with donor/partner
A13: 10 | D13: Face mask N95 | E13: 500 | J13: CoE | M13: Material Assistance | O13: 3. Currently negotiating with donor/partner
A14: 11 | D14: Compllete set of biological protection overalls | E14: 50 | J14: CoE | M14: Material Assistance | O14: 3. Currently negotiating with donor/partner
A15: 12 | D15: Facial protective shield | E15: 500 | J15: CoE | M15: Material Assistance | O15: 3. Currently negotiating with donor/partner
A16: 13 | D16: Remote thermometer | E16: 45 | J16: CoE | M16: Material Assistance | O16: 3. Currently negotiating with donor/partner
A17: 14 | D17: Surgical coat | E17: 15000 | J17: CoE | M17: Material Assistance | O17: 3. Currently negotiating with donor/partner
A18: 15 | D18: Shoe covers | E18: 30000 | J18: CoE | M18: Material Assistance | O18: 3. Currently negotiating with donor/partner
A19: 16 | D19: Cap | E19: 10000 | J19: CoE | M19: Material Assistance | O19: 3. Currently negotiating with donor/partner
A20: 17 | D20: Rubber glove | E20: 65000 | J20: CoE | M20: Material Assistance | O20: 3. Currently negotiating with donor/partner
A21: 18 | D21: Chlorine-containing disifectant for desobarrers | E21: 500 L | J21: CoE | M21: Material Assistance | O21: 3. Currently negotiating with donor/partner
A22: 19 | D22: Ethyl containing disinfectant for equipment surface, wall, floors | E22: 500 L | J22: CoE | M22: Material Assistance | O22: 3. Currently negotiating with donor/partner
A23: 20 | D23: Ethyl containing hand disinfectant | E23: 500 L | J23: CoE | M23: Material Assistance | O23: 3. Currently negotiating with donor/partner
A24: 21 | D24: Additional phone call minutes for inmates | G24: 30000 | H24: GEL | J24: INL | M24: Financial Assistance - not specified | O24: 3. Currently negotiating with donor/partner
A25: 22
A26: 23
A27: 24
A28: 25
A29: 26
A30: 27
A31: 28
A32: 29
A33: 30
A34: 31
A35: 32
A36: 33
A37: 34
A38: 35
A39: 36
A40: 37
A41: 38
A42: 39
A43: 40
A44: 41
A45: 42
A46: 43
A47: 44
A48: 45
A49: 46
A50: 47
A51: 48
A52: 49
A53: 50
A54: 51
A55: 52
A56: 53
A57: 54
A58: 55
A59: 56
A60: 57
A61: 58
A62: 59
A63: 60
A64: 61
A65: 62
A66: 63
A67: 64
A68: 65
A69: 66
A70: 67
A71: 68
A72: 69
A73: 70
A74: 71
A75: 72
A76: 73
A77: 74
A78: 75
A79: 76
A80: 77
A81: 78
A82: 79
A83: 80
A84: 81
A85: 82
A86: 83
A87: 84
A88: 85
A89: 86
A90: 87
A91: 88
A92: 89
A93: 90
A94: 91
A95: 92
A96: 93
A97: 94
A98: 95
A99: 96
A100: 97
A101: 98
A102: 99
A103: 100
A104: 101
A105: 102
A106: 103
A107: 104
A108: 105
A109: 106
A110: 107
A111: 108
A112: 109
A113: 110
A114: 111
A115: 112
A116: 113
A117: 114
A118: 115
A119: 116
A120: 117
A121: 118
A122: 119
A123: 120
A124: 121
A125: 122
A126: 123
A127: 124
A128: 125
A129: 126
A130: 127
A131: 128
A132: 129
A133: 130
A134: 131
A135: 132
A136: 133
A137: 134
A138: 135
A139: 136
A140: 137
A141: 138
A142: 139
A143: 140
A144: 141
A145: 142
A146: 143
A147: 144
A148: 145
A149: 146
A150: 147
A151: 148
A152: 149
A153: 150
A154: 151
A155: 152
A156: 153
A157: 154
A158: 155
A159: 156
A160: 157
A161: 158
A162: 159
A163: 160
A164: 161
A165: 162
A166: 163
A167: 164
A168: 165
A169: 166
A170: 167
A171: 168
A172: 169
A173: 170
A174: 171
A175: 172
A176: 173
A177: 174
A178: 175
A179: 176
A180: 177
A181: 178
A182: 179
A183: 180
A184: 181
A185: 182
A186: 183
A187: 184
A188: 185
A189: 186
A190: 187
A191: 188
A192: 189
A193: 190
A194: 191
A195: 192
A196: 193
A197: 194
A198: 195
A199: 196
A200: 197
A201: 198
A202: 199
... 101 more rows

Sheet Large-scale Committments
A1: COVID-19 RESPONSE FOR PREPAREDENESS | R1: DATE OF UPDATE:
A3: # | B3: NEEDS | H3: SUPPORT PROVIDED BY DEV PARTNERS | N3: Status | O3: Georgraphic Coverage | R3: Contact Person (DONORS)
A5: 1 | B5: Initiator | C5: Description | D5: PRODUCTS/REQUIREMENTS | E5: NUMBER | F5: BUDGET PER SUBJECT | G5: BUDGET | H5: Organization | I5: Budget | J5: Budget Provided | K5: Currency | L5: Assistance Type | M5: Comment | N5: 1. Completed 2. Agreed with the donor/partner - is currently in process 3. Currently negotiating with donor/partner 4. Exploring support opportunities | O5: (Please, select from the list) Central Level Local Level (Please select the region or municipality) | P5: (Please, select from the list) Regions | Q5: (Please, select from the list) Municipalities | R5: DONOR | S5: GOV
A6: 2 | B6: EU | C6: The EU will support Georgia's economy, notably small and medium-sized enterprises (SMEs), the self-employed and other economic operators by providing liquidity. This will take place via International Financial Institutions (IFIs), with whom we are already working in order to facilitate, simplify and accelerate the uptake of existing credit lines and grants to SMEs in local currency amounting to €200 million. Out of this, between €50 to €60 million should be available for Georgian SMEs and microenterprises for which they can apply via our partner financial intermediaries. The amount provided in grants will leverage loans and/or other financial products. | H6: EU | I6: 50000000 | J6: 50000000 | K6: EUR | L6: Financial Assistance - Loan | M6: Commitment for EaP Countries: Armenia, Azerbaijan, Belarus, Georgia, Moldova, and Ukraine. | N6: 3. Currently negotiating with donor/partner | O6: Countrywide | R6: Vincent Rey; vincent.rey@eeas.europa.eu
A7: 3 | C7: Healthcare system needs: 1. Short-term response to the COVID-19 pandemic; 2 : Strengthening resilience of health systems to face future outbreaks of diseases | H7: EU | I7: 30000000 | J7: 30000000 | K7: EUR | L7: Financial Assistance - Grant | M7: Commitment for EaP Countries: Armenia, Azerbaijan, Belarus, Georgia, Moldova, and Ukraine. | N7: 3. Currently negotiating with donor/partner | O7: Countrywide | R7: Vincent Rey; vincent.rey@eeas.europa.eu
C8: Georgian SMEs can apply to a new support programme of €100 million, which will help them easily access credit in Lari and restart their businesses after the crisis. About €20 million of the total amount could be available for Georgian SMEs and micro enterprises.The amount provided in grants will leverage loans and/or other financial products. | I8: 20000000 | J8: 20000000 | K8: EUR | L8: Financial Assistance - Loan | M8: Commitment for Georgia | N8: 3. Currently negotiating with donor/partner | O8: Countrywide | R8: Vincent Rey; vincent.rey@eeas.europa.eu
C9: EU Commission will make available €500 million of guarantees planned under the European Fund for Sustainable Development (EFSD) to facilitate the provision of liquidity in the EU’s neighbourhood including through working capital, trade finance, or moratoria on debt service. | I9: TBC | J9: 20000000 | K9: EUR | L9: Financial Assistance - Guarantee | M9: Commitment for entire EU’s neighbourhood | N9: 3. Currently negotiating with donor/partner | O9: Countrywide | R9: Vincent Rey; vincent.rey@eeas.europa.eu
A10: 4 | C10: Supporting local business, farmers and individuals in gaining skills, developing their businesses and/or recovering from the crisis. (Grant funding that will be launched in 2020 in Georgia under various projects throughout the country). | H10: EU | I10: 24000000 | J10: 24000000 | K10: EUR | L10: Financial Assistance - Grant | M10: Commitment for Georgia | N10: 2. Agreed with the donor/partner - is currently in process | O10: Countrywide | R10: Vincent Rey; vincent.rey@eeas.europa.eu
C11: CSO grants for activities in Georgia in areas including social entrepreneurship, social services and human rights. | I11: 4000000 | J11: 4000000 | K11: EUR | L11: Financial Assistance - Grant | M11: Commitment for Georgia | N11: 2. Agreed with the donor/partner - is currently in process | O11: Countrywide | R11: Vincent Rey; vincent.rey@eeas.europa.eu
C12: RRM - Rapid Response Mechanism - Small grants to CSOs, already responding to immediate needs | I12: 1300000 | J12: 1300000 | K12: EUR | L12: Financial Assistance - Grant | M12: Commitment for EaP Countries: Armenia, Azerbaijan, Belarus, Georgia, Moldova, and Ukraine. | N12: 2. Agreed with the donor/partner - is currently in process | O12: Countrywide | R12: Vincent Rey; vincent.rey@eeas.europa.eu
C13: Eastern Partnership Solidarity Programme - civil society support and sub-grants to smaller, local organisations | I13: 10000000 | J13: 10000000 | K13: EUR | L13: Financial Assistance - Grant | M13: Commitment for EaP Countries: Armenia, Azerbaijan, Belarus, Georgia, Moldova, and Ukraine. | N13: 3. Currently negotiating with donor/partner | O13: Countrywide | R13: Vincent Rey; vincent.rey@eeas.europa.eu
A14: 25 | B14: USA | C14: Health funding to Georgia to help prepare laboratory systems, activate case-finding and event-based surveillance, support technical experts for response and preparedness, bolster risk communication, and more | I14: 1100000 | J14: 1100000 | K14: USD | L14: Financial Assistance - Grant | M14: In partnership with the WHO and IFRC This financial assistance is divided between $400K for IFRC and $700 for WHO. | N14: 2. Agreed with the donor/partner - is currently in process | O14: Countrywide | R14: Peter Wiebler; pwiebler@usaid.gov
A15: 28 | B15: International Organizations
A16: 29
A17: 30
A18: 31
A19: 32
A20: 33
A21: 34
A22: 35
A23: 36
A24: 37
A25: 38
A26: 39
A27: 40
A28: 41
A29: 42
A30: 43
A31: 44
A32: 45
A33: 46
A34: 47
A35: 48
A36: 49
A37: 50
A38: 51
A39: 52
A40: 53
A41: 54
A42: 55
A43: 56
A44: 57
A45: 58
A46: 59
A47: 60
A48: 61
A49: 62
A50: 63
A51: 64
A52: 65
A53: 66
A54: 67
A55: 68
A56: 69
A57: 70
A58: 71
A59: 72
A60: 73
A61: 74
A62: 75
A63: 76
A64: 77
A65: 78
A66: 79
A67: 80
A68: 81
A69: 82
A70: 83
A71: 84
A72: 85
A73: 86
A74: 87
A75: 88
A76: 89
A77: 90
A78: 91
A79: 92
A80: 93
A81: 94
A82: 95
A83: 96
A84: 97
A85: 98
A86: 99
A87: 100
A88: 101
A89: 102
A90: 103
A91: 104
A92: 105
A93: 106
A94: 107
A95: 108
A96: 109
A97: 110
A98: 111
A99: 112
A100: 113
A101: 114
A102: 115
A103: 116
A104: 117
A105: 118
A106: 119
A107: 120
A108: 121
A109: 122
A110: 123
A111: 124
A112: 125
A113: 126
A114: 127
A115: 128
A116: 129
A117: 130
A118: 131
A119: 132
A120: 133
A121: 134
A122: 135
A123: 136
A124: 137
A125: 138
A126: 139
A127: 140
A128: 141
A129: 142
A130: 143
A131: 144
A132: 145
A133: 146
A134: 147
A135: 148
A136: 149
A137: 150
A138: 151
A139: 152
A140: 153
A141: 154
A142: 155
A143: 156
A144: 157
A145: 158
A146: 159
A147: 160
A148: 161
A149: 162
A150: 163
A151: 164
A152: 165
A153: 166
A154: 167
A155: 168
A156: 169
A157: 170
A158: 171
A159: 172
A160: 173
A161: 174
A162: 175
A163: 176
A164: 177
A165: 178
A166: 179
A167: 180
A168: 181
A169: 182
A170: 183
A171: 184
A172: 185
A173: 186
A174: 187
A175: 188
A176: 189
A177: 190
A178: 191
A179: 192
A180: 193
A181: 194
A182: 195
A183: 196
A184: 197
A185: 198
A186: 199
A187: 200
A188: 201
A189: 202
A190: 203
A191: 204
A192: 205
A193: 206
A194: 207
A195: 208
A196: 209
A197: 210
A198: 211
A199: 212
A200: 213
A201: 214
A202: 215
... 85 more rows

Sheet LISTS (hidden)
A1: STATUS
A2: 1. Completed
A3: 2. Agreed with the donor/partner - is currently in process
A4: 3. Currently negotiating with donor/partner
A5: 4. Exploring support opportunities
A6: N/A
A9: GEOGRAPHIC LEVELS
A10: Central Level
A11: Local Level
A12: Countrywide
A15: REGION&MUNICIPALITY
A16: Tbilisi
A17: Autonomous Republic of Adjara
A18: Autonomous Republic of Abkhazia
A19: Imereti
A20: Samegrelo-Zemo Svaneti
A21: Racha-Lechkhumi-Kvemo Svaneti
A22: Guria
A23: Mtskheta-Mtianeti
A24: Kakheti
A25: Kvemo Kartli
A26: Shida Kartli
A27: Samtskhe-Javakheti
